{"text_format":"3","workbook":"xlsx","n_sheets":14,"sheets":["CAPTURA","CHEQUE CORTO","CHEQUE NVO","Orden sin recibo","orden con recibo","PAGARE","REGISTRO DE CHEQUES","CONCEPTO DE CHEQUE CHICO","PROVEEDORES","Transfer","Orden sin recibo TRANS","orden con recibo MODF","Hoja1","Hoja2"],"not_rendered":{"macros":1,"external_links":3,"defined_names":43,"comments":2},"read":"whole","date_system":"1900"}

{"sheet":"CAPTURA","index":0,"n_rows":18,"n_cols":3,"rows_kept":18}
[]
[]
[]
[null,"CHEQUE",1015]
[null,"FECHA","01 DE OCTUBRE DE 2018"]
[null,"NOMBRE","ARTEMIA LOPEZ MONTER"]
[null,"CANTIDAD",{"v":8008.04,"d":"8,008.04"}]
[null,"CONCEPTO","PAGO DE RENTA DEL MES DE OCTUBRE 2018 ( SAMAPA )"]
[null,"OBSERVACIONES"]
[null,"DEPARTAMENTO"]
[]
[]
[]
[]
[null,null,"                                                                      "]
[]
[]
[null,null," "]

{"sheet":"CHEQUE CORTO","index":1,"n_rows":25,"n_cols":3,"rows_kept":25,"merged":[[1,0,1,1],[2,0,2,3],[5,0,5,1],[16,0,16,1],[17,0,17,3],[20,0,20,1]]}
[" ",null,{"$f":"+CAPTURA!C5","v":"01 DE OCTUBRE DE 2018"}]
[{"$f":"+CAPTURA!C6","v":"ARTEMIA LOPEZ MONTER"},null,{"$f":"+CAPTURA!C7","v":{"v":8008.04,"d":"8,008.04"}}]
[{"$f":"PesosMN(C2)","v":"( OCHO MIL OCHO PESOS 04/100 M.N.)"}]
[" "]
[null,"  "]
[{"$f":"+CAPTURA!C8","v":"PAGO DE RENTA DEL MES DE OCTUBRE 2018 ( SAMAPA )"}]
[]
[]
[" "]
[null,{"$f":"A2","v":"ARTEMIA LOPEZ MONTER"}]
[null,null,{"$f":"+C2","v":{"v":8008.04,"d":"8,008.04"}}]
[null,{"$f":"+CAPTURA!C4","v":1015}]
[]
[]
[]
[]
[]
[" "]
[]
[]
[]
[]
[]
[]
[null,null,{"$f":"+C11","v":8008.04}]

{"sheet":"CHEQUE NVO","index":2,"n_rows":15,"n_cols":11,"rows_kept":15,"merged":[[0,1,0,2],[1,0,1,1],[2,0,2,3],[6,1,6,2],[7,0,7,1],[8,0,8,3],[14,0,17,3]]}
[" ",{"$f":"+CAPTURA!C5","v":"01 DE OCTUBRE DE 2018"}]
[{"$f":"+CAPTURA!C6","v":"ARTEMIA LOPEZ MONTER"},null,{"$f":"+CAPTURA!C7","v":{"v":8008.04,"d":"8,008.04"}}]
[{"$f":"PesosMN(C2)","v":"( OCHO MIL OCHO PESOS 04/100 M.N.)"}]
[" "]
[]
[" "]
[null,{"$f":"B1","v":"01 DE OCTUBRE DE 2018"}]
[{"$f":"A2","v":"ARTEMIA LOPEZ MONTER"},null,{"$f":"C2","v":{"v":8008.04,"d":"8,008.04"}}]
[{"$f":"PesosMN(C8)","v":"( OCHO MIL OCHO PESOS 04/100 M.N.)"}]
[null,"CHEQUE",{"$nulls":8}," "]
[null,{"$f":"+CAPTURA!C4","v":1015}]
[]
[]
[]
[{"$f":"+CAPTURA!C8","v":"PAGO DE RENTA DEL MES DE OCTUBRE 2018 ( SAMAPA )"}]

{"sheet":"Orden sin recibo","index":3,"n_rows":38,"n_cols":76,"rows_kept":38,"merged":[[5,10,6,10],[12,2,12,7],[16,2,16,7],[34,2,34,3],[34,5,34,7]]}
[]
[]
[]
[]
[]
[{"$nulls":3},"                                                                                          ",{"$nulls":6},"Numero de Cheque"]
[]
[{"$nulls":10},566]
[null,null,"                                           ",null," "]
[null,null,"      "]
[null,null,"                                                                                                                                                                                                                                                                                                                                                                                                                                                                                                                                                                                 "]
[null,"                                         ",{"$nulls":4},"      ",{"$f":"+VLOOKUP(F26,'REGISTRO DE CHEQUES'!A1:G4945,4,FALSE)","v":{"v":16350,"d":"16,350.00"}}]
[null,null,{"$f":"PesosMN(H12)","v":"( DIECISEIS MIL TRESCIENTOS CINCUENTA PESOS 00/100 M.N.)"}]
[null,null,"                            ",null," "]
[null,"                        ","      ","                                 "," ",null,null," "]
[]
[null,null,{"$f":"+VLOOKUP(F26,'REGISTRO DE CHEQUES'!A1:G4945,5,FALSE)","v":"PAGO DE COMBUSTIBLE DEL 11 AL 16 DE ENERO"}]
[{"$nulls":75},"Z"]
["  "]
[null,null,"            "]
[null,null,"      ",null," "]
[null,null,"     "]
[null,null,"                        "]
[null,null,"     "," "]
[null,null,"               ",null,null,"            "]
[null,null,"     ","CHEQUE",null,{"$f":"+VLOOKUP(K8,'REGISTRO DE CHEQUES'!A1:G4945,1,FALSE)","v":566}]
[{"$nulls":4}," "]
[null,null,"      "," ",null," ",null,"                                                                                                                                                                                                                                                                                                                                                                         "]
[null,null,"     "]
[null,null,"      "]
[null,null,"       "]
[null,null,"      "]
[null,null,"      ",null,null," "]
[null,null,"                                  ",{"$nulls":4}," "]
[null,null,"IXTLAHUACAN DE LOS MEMBRILLOS, JAL. ",null,null,{"$f":"+VLOOKUP(F26,'REGISTRO DE CHEQUES'!A1:G4945,2,FALSE)","v":"23 DE ENERO DE 2018"}]
[null,null,"          "]
[]
["LIC. ANTONIO COVARRUBIAS MEJIA"]

{"sheet":"orden con recibo","index":4,"n_rows":43,"n_cols":9,"rows_kept":43,"merged":[[1,8,2,8],[9,1,9,6],[14,0,14,3],[19,5,19,6],[20,5,20,6],[27,5,27,6],[28,1,28,6],[29,1,29,6],[31,3,31,6],[33,2,33,6],[35,1,35,6],[39,0,39,3],[39,4,39,5],[42,3,42,5]]}
[]
[{"$nulls":8},"Numero de Cheque"]
[]
[{"$nulls":8},566]
[]
[]
[{"$nulls":4},{"$f":"+VLOOKUP(E23,'REGISTRO DE CHEQUES'!A1:G4945,3,FALSE)","v":"JOSE VICENTE ROMERO RUIZ"}]
[]
[{"$nulls":5},{"$f":"+VLOOKUP(E23,'REGISTRO DE CHEQUES'!A1:G4945,4,FALSE)","v":{"v":16350,"d":"16,350.00"}}]
[null,{"$f":"PesosMN(F9)","v":"( DIECISEIS MIL TRESCIENTOS CINCUENTA PESOS 00/100 M.N.)"}]
[]
[{"$nulls":4},"  "]
[]
[]
["IXTLAHUACAN DE LOS MEMBRILLOS ",{"$nulls":4},{"$f":"+VLOOKUP(E23,'REGISTRO DE CHEQUES'!A1:G4945,2,FALSE)","v":"23 DE ENERO DE 2018"}]
[]
[]
[]
[]
[]
["LIC. ANTONIO COVARRUBIAS MEJIA"]
[]
[{"$nulls":4},{"$f":"+VLOOKUP(I4,'REGISTRO DE CHEQUES'!A1:G4945,1,FALSE)","v":566}]
[]
[]
[]
[{"$nulls":5},{"$f":"F9","v":{"v":16350,"d":"16,350.00"}}]
[]
[null,"IXTLAHUACAN DE LOS MEMBRILLOS, JALISCO"]
[]
[null,null," "]
[null,{"$f":"F9","v":{"v":16350,"d":"16,350.00"}},null,{"$f":"B10","v":"( DIECISEIS MIL TRESCIENTOS CINCUENTA PESOS 00/100 M.N.)"}]
[]
[]
[]
[null,{"$f":"+VLOOKUP(E23,'REGISTRO DE CHEQUES'!A1:G4945,5,FALSE)","v":"PAGO DE COMBUSTIBLE DEL 11 AL 16 DE ENERO"}]
[]
[]
[]
["IXTLAHUACAN DE LOS MEMBRILLOS",{"$nulls":3},{"$f":"+F15","v":"23 DE ENERO DE 2018"}]
["  "]
[]
[{"$nulls":3},{"$f":"E7","v":"JOSE VICENTE ROMERO RUIZ"}]

{"sheet":"PAGARE","index":5,"n_rows":9,"n_cols":13,"rows_kept":9,"merged":[[1,0,1,1],[1,4,1,9],[1,12,1,14],[2,7,2,8],[2,13,2,14],[3,2,3,10],[5,0,5,14],[8,1,8,6],[8,7,8,14],[9,1,9,9],[10,1,10,6]]}
[]
[{"$f":"+CAPTURA!C4","v":1015},{"$nulls":3},"VENCIMIENTO",{"$nulls":7},{"$f":"+CAPTURA!C7","v":{"v":8008.04,"d":"8,008.04"}}]
[]
[null,null,"SISTEMA ADMINISTRATIVO DE AGUA POTABLE Y ALCANTARILLADO "]
[]
[{"$f":"PesosMN(M2)","v":"( OCHO MIL OCHO PESOS 04/100 M.N.)"}]
[]
[]
[null,{"$f":"+CAPTURA!C6","v":"ARTEMIA LOPEZ MONTER"},{"$nulls":5},{"$f":"+CAPTURA!C5","v":"01 DE OCTUBRE DE 2018"}]

{"sheet":"REGISTRO DE CHEQUES","index":6,"n_rows":451,"n_cols":7,"rows_kept":451}
["CHEQUE","FECHA","NOMBRE","CANTIDAD","CONCEPTO","OBSERVACIONES","DEPARTAMENTO"]
[566,"23 DE ENERO DE 2018","JOSE VICENTE ROMERO RUIZ",{"v":16350,"d":"$16,350.00"},"PAGO DE COMBUSTIBLE DEL 11 AL 16 DE ENERO","PAGO DE COMBUSTIBLE DEL 11 AL 16 DE ENERO"]
[567,"23 DE ENERO DE 2018","JOSE VICENTE ROMERO RUIZ",{"v":10100,"d":"$10,100.00"},"PAGO DE COMBUSTIBLE DEL 27 DE DICIEMBRE 2017 AL 02 DE ENERO 2018"]
[568,"24 DE ENERO DE 2018","EMILIO GONZALEZ DELGADILLO",{"v":120384,"d":"$120,384.00"},"PAGO DE NOMINA PRIMER QUINCENA DE ENERO 2018","NOMINA"]
[569,"24 DE ENERO DE 2018","EMILIO GONZALEZ DELGADILLO",{"v":15081,"d":"$15,081.00"},"PAGO DE  PRIMER QUINCENA DE ENERO 2018 PERSONAL EVENTUAL","NOMINA EVENTUL"]
[570,"24 DE ENERO DE 2018","CARLOS ORTIZ ZAMORA",{"v":5000,"d":"$5,000.00"},"PRESTAMO PERSONAL A  EMPLEADO","PRESTAMO"]
[571,"25 DE ENERO DE 2018","EMILIO GONZALEZ DELGADILLO",{"v":299808,"d":"$299,808.00"},"PAGO A LA CFE POR CONCEPTO DE ENERGIA ","CFE "]
[572,"26 DE ENERO DE 2018","JOSE VICENTE ROMERO RUIZ",{"v":16650,"d":"$16,650.00"},"PAGO DE  COMBUSTIBLE DEL 18 AL 24 DE ENERO DEL 2018"]
[573,"26 DE ENERO DE 2018","EMILIO GONZALEZ DELGADILLO ",{"v":4000,"d":"$4,000.00"},"PRESTAMO PERSONAL A EMPLEADO"]
[574,"26 DE ENERO DE 2018","JORGE ANDRES MANCILLA CASTILLO",{"v":4523.88,"d":"$4,523.88"},"TONER SAMSUNG  G M4072U EXTRA ALTO REND. Y 2 TONER HEWLETT PACKARD HP-17 A ORIGINAL"]
[575,"26 DE ENERO DE 2018","FELIPE HERRERA ENCISO",{"v":5323.24,"d":"$5,323.24"},"MATERIAL PARA VACTOR , CUADRILLAS Y BOMBA DE AGUA"]
[576,"26 DE ENERO DE 2018","JUAN MIGUEL TREJO ROMERO",{"v":8120,"d":"$8,120.00"},"EXCAVACION DE LINEA DE AGUA EN FRACCIONAMIENTO OLIVOS I"]
[577,"29 DE ENERO DE 2018","CANCELADO",{"v":7500.04,"d":"$7,500.04"},"RENTA DEL MES DE ENERO 2018"]
[578,"29 DE ENERO DE 2018","CANCELADO",{"v":7500.04,"d":"$7,500.04"},"RENTA DEL MES DE ENERO 2018"]
[579,"29 DE ENERO DE 2018","CANCELADO",{"v":7500.04,"d":"$7,500.04"},"RENTA DEL MES DE ENERO 2018"]
[580,"29 DE ENERO DE 2018","ARTEMIA LOPEZ MONTER",{"v":7500.04,"d":"$7,500.04"},"RENTA DEL MES DE ENERO 2018"]
[581,"29 DE ENERO DE 2018","CANCELADO",{"v":1215911,"d":"$1,215,911.00"},"PAGO DE ENERGIA ELECTRICA DEL MES DE DICIEMBRE 2017."]
[582,"29 DE ENERO DE 2018","CANCELADO",{"v":1215911,"d":"$1,215,911.00"},"PAGO DE ENERGIA ELECTRICA DEL MES DE DICIEMBRE 2017"]
[583,"29 DE ENERO DE 2018","CANCELADO",{"v":1215911,"d":"$1,215,911.00"},"PAGO DE ENERGIA ELECTRICA DEL MES DE DICIEMBRE 2017."]
[584,"29 DE ENERO DE 2018","CFE SUMINISTRADOR DE SERVICIOS BASICOS ",{"v":1215911,"d":"$1,215,911.00"},"PAGO DE ENERGIA ELECTRICA DEL MES DE DICIEMBRE 2017"]
[585,"30 DE ENERO DE 2018","EMILIO GONZALEZ DELGADILLO",{"v":129014.8,"d":"$129,014.80"},"PAGO DE NOMINA SEGUNDA QUINCENA DE ENERO 2018"]
[586,"30 DE ENERO DE 2018","EMILIO GONZALEZ DELGADILLO",{"v":15950,"d":"$15,950.00"},"PAGO DE NOMINA SEGUNDA QUINCENA DE ENERO 2018 PERSONAL EVENTUAL"]
[587,"30 DE ENERO DE 2018","COMERCIALIZADORA INDUSTRIAL DE ZAPOPAN SA DE CV",{"v":29116,"d":"$29,116.00"},"PAGO DE CLORO REFERENCIADO EN ADEFAS 2017 QUE AMPARAN LAS FACTURAS NO. 006676E Y 006639E"]
[588,"30 DE ENERO DE 2018","COMERCIALIZADORA INDUSTRIAL DE ZAPOPAN SA DE CV",{"v":12180,"d":"$12,180.00"},"PAGO DE CLORO  REFERENCIADO EN FACTURA NO. 006863E DE FECHA 09/01/2018"]
[589,"31 DE ENERO DE 2018","EMILIO GONZALEZ DELGADILLO",{"v":10480.22,"d":"$10,480.22"},"GASTOS A COMPROBAR "]
[590,"31 DE ENERO DE 2018","ALBERTO HERNANDEZ VELAZQUEZ",{"v":293712,"d":"$293,712.00"},"TANQUE DE ACERO AL CARBON DE 1/4\"  EN LATERALES Y 3/4 \" EN BASE,  DE 5 MTS DE DIAMETRO  X 4.4 DE ALTURA,PINTADO EL INTERIOR CON PINTURA EPOXICA INCLUYE GRUA Y  TRASPORTE AL LUGAR DE LA OBRA, DE APROXIMADAMENTE 90 MIL LTS."]
[591,"31 DE ENERO DE 2018","RIVERA TORRES JESSICA MONTSERRAT",{"v":50130.04,"d":"$50,130.04"},"SUMINISTRO DE UN ARRANCADOR MARCA SIEMENS DE 75 HP/440 VOLTS, UN AUTO-TRANSFORMADOR EN SECO DE 350 KV. PARA DOTAR DE ENERGIA  A DOSIFICADOR, PASTILLA TERMICA DE 2 AMPRS. UN DETECTOR DE FALLA EN FASE INSTALACION DE PIEZAS ELECTRICAS Y PUESTO EN MARCHA. OLIVOS II"]
[592,"31 DE ENERO DE 2018","RODRIGUEZ VELASCO ALEJANDRO",{"v":2784,"d":"$2,784.00"},"CAMBIO DE ACEITE , RETEN DELANTAL DE SIGUEÑAL Y TAPON DE CARTER A VEHICULO CHEVROLET LUV, ASIGNADO AL AREA DE SAMAPA."]
[593,"01 DE  FEBRERO DE 2018","TUBERIAS Y CONEXIONES DEL LAGO",{"v":84786.65,"d":"$84,786.65"},"MATERIAL SOLICITADO PARA TRABAJOS DE LAS DIFERENTES CUADRILLAS,  SAMAPA"]
[594,"02 DE FEBRERO DE 2018","JOSE VICENTE ROMERO RUIZ",{"v":16800,"d":"$16,800.00"},"PAGO DE DE COMBUSTIBLE DEL 25 AL 31 DE ENERO 2018"]
[595,"02 DE FEBRERO DE 2018","EFRAIN ESTRADA MEJIA",{"v":1000,"d":"$1,000.00"},"APOYO A CHOFER DE PIPA DEL ESTADO"]
[596,"07 DE FEBRERO DE 2018","JESUS ALEJANDRO FLORES BERNARDO",{"v":1269,"d":"$1,269.00"},"GASTOS A COMPROBAR "]
[597,"07 DE FEBRERO DE 2018","JOSE CARLOS GUTIERREZ FLORES",{"v":4274.6,"d":"$4,274.60"},"MATERIAL DE CONSTRUCCION UTILIZADO PARA REPARAR FUGAS Y DRENAJES EN ATEQUIZA"]
[598,"07 DE FEBRERO DE 2018","ANTONIO COVARRUBIAS MEJIA",{"v":4230.23,"d":"$4,230.23"},"GASTOS A COMPROBAR"]
[599,"07 DE FEBRERO DE 2018","MAURO GOMEZ CORDOVA",{"v":11697.44,"d":"$11,697.44"},"MATERIAL UTILIZADO EN REPARACIONES VARIAS DENTRO DEL MUNICIPIO "]
[600,"07 DE FEBRERO DE 2018","FELIPE HERRERA ENCISO",{"v":1881.52,"d":"$1,881.52"},"MATERIAL UTILIZADO EN LOCALIDADES , CUADRIALLAS Y VACTOR (SAMAPA)"]
[601,"07 DE FEBRERO DE 2018","FELIPE HERRERA ENCISO",{"v":3495.08,"d":"$3,495.08"},"MATERIAL UTILIZADO EN LOCALIDADES Y CUADRIALLAS  (SAMAPA)"]
[602,"07 DE FEBRERO DE 2018","FELICIANO GARCIA PEREZ",{"v":9800,"d":"$9,800.00"},"REPARACION DE MOTO BOMBA DEL FRACCIONAMIENTO LOMAS DE LA CAPILLA."]
[603,"07 DE FEBRERO DE 2018","JORGE ANDRES MANCILLA CASTILLO",{"v":8447.73,"d":"$8,447.73"},"TONER,CARTUCHOS Y PASTAS PARA ENGARGOLAR"]
[604,"08 DE FEBRERO DE 2018","JOSE VICENTE ROMERO RUIZ",{"v":15050,"d":"$15,050.00"},"PAGO DE COMBUSTIBLE DE 01 AL 07 DE FEBRERO 2018"]
[605,"09 DE FEBRERO D 2018","TECNOELECTRICANACIONAL S.A. DE C.V.",{"v":7074.16,"d":"$7,074.16"},"CANCELADO"]
[606,"09 DE FEBRERO D 2018","TECNOELECTRICA NACIONAL S.A. DE C.V.",{"v":7074.16,"d":"$7,074.16"},"SALDO DE RAPARACION A TRANSFORMADOR MARCA CE, SERIE: 4004-4975 DE LA CAÑADA"]
[607,"CANCELADO","CANCELADO",{"v":133581,"d":"$133,581.00"},"CANCELADO"]
[608,"12 DE FEBRERO DE 2018","LUIS ENRIQUE BALVINO FLORES",{"v":3000,"d":"$3,000.00"},"PAGO DE FINIQUITO"]
[609,"15 DE FEBRERO DE 2018","EMILIO GONZALEZ DELGADILLO",{"v":133581,"d":"$133,581.00"},"PAGO DE NOMINA PRIMERA QUINCENA DE FEBRERO"]
[610,"14 DE FEBRERO DE 2018","FRANCISCO JAVIER HERRERA ENCISO",{"v":6061,"d":"$6,061.00"},"PAGO DE ADQUISICION DE REFACCIONES PARA VEHICULOS DE SAMAPA"]
[611,"16 DE FEBRERO DE E2018","JOSE VICENTE ROMERO RUIZ","16050 CANCELADO","PAGO DE COMBUSTIBLE DEL 31 DE ENERO AL 14 DE FEBRERO DE 2018","CANCELADO"]
[612,"16 DE FEBRERO DE 2018","JOSE VICENTE ROMERO RUIZ",{"v":16050,"d":"$16,050.00"},"PAGO DE COMBUSTIBLE DEL 31 DE ENERO AL 14 DE FEBRERO DE 2018"]
[613,"16 DE FEBRERO DE 2018","MARCO ANTONIO RAMIREZ BRAVO ",{"v":5220,"d":"$5,220.00"},"PAGO DE SERVICIO DE RETROEXCAVADORA, EN LA CAPILLA PARA CONEXIÓN DE DRENAJE Y EN OLIVIOS I, REPARACIONES DE FUGA DE AGUA"]
[614,"16 DE FEBRERO DE 2018","EFRAIN ESTRADA MEJIA",{"v":1000,"d":"$1,000.00"},"APOYO A CHOFER DE PIPA DEL ESTADO"]
[615,"16 DE FEBRERO DE 2018","GONZALO BEJARANO LECHUGA",{"v":2552,"d":"$2,552.00"},"IMPRESIÓN DE 1 MILLAR DE VALES DE GASOLINA Y VOLANTES  PARA SAMAPA"]
[616,"16 DE FEBRERO DE 2018","EMILIO GONZALES DELGADILLO",{"v":29839.02,"d":"$29,839.02"},"PAGO DE AGUINALDOS 2017 REFERENCIADOS EN ADEFAS"]
[617,"16 DE FEBRERO DE 2018","JOSE ANTONIO CONTRERAS LOPEZ",{"v":4500,"d":"$4,500.00"},"ESTRUCTURA METALICA EN TUBULAR DE 4\" Y PTR DE 2\" PORTA TUBOS ( EN SAMAPA)"]
[618,"16 DE FEBRERO DE 2018","EMILIO GONZALEZ DELGADILLO",{"v":7422.8,"d":"$7,422.80"},"GASTOS A COMPROBAR"]
[619,"16 DE FEBRERO DE 2018","ALEJANDRA SANCHEZ VILLASEÑOR ",{"v":1434,"d":"$1,434.00"},"PAGO POR CUBRIR VACACIONES A OPERADOR DE POZO DE LA LOCALIDAD DE VALLE DE LOS OLIVOS"]
[620,"19 DE FEBRERO DE 2018","ARTEMIA LOPEZ MONTER ",{"v":7500.04,"d":"$7,500.04"},"PAGO DE RENTA DEL MES DE FEBRERO 2018 ( SAMAPA)"]
[621,"19 DE FEBRERO DE 2018","JESUS ALEJANDRO FLORES BERNARDO",{"v":3480,"d":"$3,480.00"},"GASTOS A COMPROBAR"]
[622,"20 DE FEBRERO DE 2018","TUBERIAS Y CONEXIONES DEL LAGO SA DE CV",{"v":29616.03,"d":"$29,616.03"},"MATERIAL SOLICITADO PARA LAS DIFERENTES CUADRILLAS, SAMAPA"]
[623,"20 DE FEBRERO DE 2018","EMILIO GONZALEZ DELGADILLO",{"v":31688.88,"d":"$31,688.88"},"GASTOS A COMPROBAR"]
[624,"21 DE FEBRERO DE 2018","MARCO ANTONIO RAMIREZ BRAVO",{"v":8120,"d":"$8,120.00"},"SERV. DE RETROEXCAVADORA PARA DESAZOLVE DE SANJAS, POR DESCARGAS DE DRENAJE EN FRACCIONAMIENTO SABINOS"]
[625,"22 DE FEBRERO DE 2018","JOSE VICENTE ROMERO RUIZ",{"v":18050,"d":"$18,050.00"},"PAGO DE COMBUSTIBLE DEL 15 AL 21 DE FEBRERO 2018"]
[626,"22 DE FEBRERO DE 2018","JESUS ALEJANDRO FLORES BERNARDO",{"v":1605.4,"d":"$1,605.40"},"GASTOS A COMPROBAR"]
[627,"22 DE FEBRERO DE 2018","FELIPE HERRERA ENCISO",{"v":6614.32,"d":"$6,614.32"},"MATERIAL PARA ALMACEN,VACTOR, LOCALIDADES Y CUADRILLAS"]
[628,"22 DE FEBRERO DE 2018","FELIPE HERRERA ENCISO",{"v":2778.2,"d":"$2,778.20"},"MATERIAL PARA CUADRILLAS (SAMAPA)"]
[629,"22 DE FEBRERO DE 2018","GONZALO BEJARANO LECHUGA",{"v":7946,"d":"$7,946.00"},"20 MIL IMPRESIÓNES DE VOLANTES MEDIA CARTA  (SAMAPA)"]
[630,"22 DE FEBRERO DE 2018","CFE SUMINISTRADOR DE SERVICIOS BASICOS ",{"v":1261264,"d":"$1,261,264.00"},"PAGO  DE ENERGIA ELECTRICA DEL MES DE ENERO 2018"]
[631,"23 DE FEBRERO DE 2018","CANCELADO",{"v":3996.2,"d":"$3,996.20"},"}"]
[632,"23 DE FEBRERO DE 2018","ALEJANDRO RODRIGUEZ VELASCO",{"v":3996.2,"d":"$3,996.20"},"SERVICIO DE AFINACION Y ALINECION A VEHICULO ASIGNADO AL EREA DE SAMAPA"]
[633,"27 DE FEBRERO DE 2018","EMILIO GONZALEZ DELGADILLO",{"v":130865.8,"d":"$130,865.80"},"PAGO DE NOMINA SEGUNDA QUINCENA DE FEBRERO 2018"]
[634,"28 DE FEBRERO DE 2018","ALBERTO HERNANDEZ VELAZQUEZ",{"v":176320,"d":"$176,320.00"},"EQUIPO DE BOMBEO Y MANIOBRA  DE INSTALACION  PARA LA LOCALIDAD DE SANTA ROSA"]
[635,"28 DE FEBRERO DE 2018","ALBERTO HERNANDEZ VELAZQUEZ",{"v":249400,"d":"$249,400.00"},"EQUIPO DE BOMBEO Y MANIOBRA  DE INSTALACION  PARA FRACCIONAMIENTO HUERTA VIEJA"]
[636,"01 DE MARZO DE 2018","GUILLERMO MORA ARANA",{"v":2730,"d":"$2,730.00"},"PAGO DE RENTA DEL MES ENERO Y FEBRERO  DEL AÑO EN CURSO, DE LOCAL QUE OCUPA LA OFICINA DE SAMAPA EN LA LOCALIDAD DE LA CAPILLA."]
[637,"01 DE MARZO DE 2018","SERGIO RAMOS REYES ",{"v":2000,"d":"$2,000.00"},"PAGO CORRESPONDIENTE A LA SEGUNDA QUINCENA DE FEBRERO DE 2018 A OPERADOR DE PLANTA DE TRATAMIENTO "]
[638,"01 DE MARZO DE 2018","JOSE VICENTE ROMERO RUIZ",{"v":20850,"d":"$20,850.00"},"PAGO DE COMBUSTIBLE DEL 22 AL 28 DE FEBRERO DE 2018"]
[639,"01 DE MARZO DE 2018","FELICIANO GARCIA PEREZ",{"v":13108,"d":"$13,108.00"},"PAGO DE REPARACION DE  BOMBA DE LODOS E INSTALACION, PARA FRACCIONAMIENTO SABINOS III"]
[640,"01 DE MARZO DE 2018","VAZQUEZ CORONA LETICIA",{"v":16698.2,"d":"$16,698.20"},"EQUIPO MANUAL PARA DESAZOLVE DE DRENAJE, CONSTA DE 100 VARILLAS DE ACERO, 6 ACCESORIOS Y GASTOS DE ENVIO."]
[641,"02 DE MARZO DE 2018","MARCO ANTONIO RAMIREZ BRAVO",{"v":6264,"d":"$6,264.00"},"12 HORAS DE SERVICIO DE RETROEXCAVADORA PARA LA RED DE AGUA EN FRACCIONAMIENTO OLIVOS I"]
[642,"02 DE MARZO DE 2018","ARTEMIA LOPEZ MONTER",{"v":7500.04,"d":"$7,500.04"},"PAGO DE RENTA DEL MES DE MARZO 2018 (SAMAPA)"]
[643,"02 DE MARZO DE 2018","EFRAIN ESTRADA MEJIA",{"v":1000,"d":"$1,000.00"},"APOYO A CHOFER DE PIPA DEL ESTADO"]
[644,"02 DE MARZO DE 2018","RAFAEL CORTES HERNANDEZ",{"v":812,"d":"$812.00"},"PARRILLAS DE REGISTRO  DE VALVULAS PARA FRACCIONAMIENTO RECIDENCIAL LA CAPILLA"]
[645,"08 DE MARZO DE 2018","COMERCIALIZADORA INDUSTRIAL DE ZAPOPAN SA DE CV",{"v":23374,"d":"$23,374.00"},"4,750 KGM DE HIPOCLORITO DE SODIO AL 13 % Y 100 PASTILLAS DPD 1 PARA LOS DIFERENTES POZOZ DEL MUNICIPIO."]
[646,"08 DE MARZO DE 2018","JOSE CARLOS GUTIERREZ FLORES",{"v":2380.32,"d":"$2,380.32"},"MATERIAL UTILIZADO PARA REPARACION DE CALLE PEDRO MORENO EN LA LOCALIDAD DE ATEQUIZA"]
[647,"08 DE MARZO DE 2018","JESUS ALEJANDRO FLORES BERNARDO",{"v":1692.64,"d":"$1,692.64"},"GASTOS A COMPROBAR"]
[648,"08 DE MARZO DE 2018","JOSE VICENTE ROMERO RUIZ",{"v":19500,"d":"$19,500.00"},"PAGO DE COMBUSTIBLE DEL 01 AL 06 DE MARZO DE 2018"]
[649,"08 DE MARZO DE 2018","FRANCISCO JAVIER HERRERA ENCISO",{"v":3111.12,"d":"$3,111.12"},"PAGO DE ACEITES HIDRAULICOS, ADITIVO,FILTROS DE AIRE QUE NECESITABAN LOS DIFERENTES VEHICULOS Y MOTOCICLETAS ASIGNADOS A EL AREA DE SAMAPA."]
[650,"08 DE MARZO DE 2018","GONZALO BEJARANO LECHUGA",{"v":8560.8,"d":"$8,560.80"},"IMPRESIÓN DE TARJETAS,LONAS, VOLANTES Y LOGOS DE SAMAPA."]
[651,"08 DE MARZO DE 2018","TUBERIAS Y CONEXIONES DEL LAGO SA DE CV",{"v":15173.44,"d":"$15,173.44"},"MATERIAL PARA ALMACEN Y LAS DIFERENTES CUADRILLAS (SAMAPA)"]
[652,"08 DE MARZO DE 2018","APOLONIO BECERRA RAUDA",{"v":2088,"d":"$2,088.00"},"REPARACION COMPLETA DE MARCHA Y ALTERNADOR PARA CAMIONETA PICK UP RANGER ASIGNADA A EL AREA DE SAMAPA"]
[653,"08 DE MARZO DE 2018","FELICIANO GARCIA PEREZ",{"v":6248,"d":"$6,248.00"},"REPARACION DE MOTO BOMBA US ELECTRIC DE 25 HP 220/40 CON CABEZAL MEJORADO, PARA FRACCIONAMIENTO SABINOS I."]
[654,"08 DE MARZO DE 2018","CANCELADO",{"v":2178.48,"d":"$2,178.48"},"MATERIAL SOLICITADO PARA LAS CUDRILLAS (SAMAPA)"]
[655,"08 DE MARZO DE 2018","FELIPE HERRERA ENCISO",{"v":2178.48,"d":"$2,178.48"},"MATERIAL SOLICITADO PARA LAS CUDRILLAS (SAMAPA)"]
[656,"12 DE MARZO DE 2018","JORGE NUÑO VILCHIS",{"v":15000,"d":"$15,000.00"},"PRESTAMO PERSONAL A EMPLEADO"]
[657,"14 DE MARZO DE 2018","ALBERTO HERNANDEZ VELAZQUEZ",{"v":2436,"d":"$2,436.00"},"1 CUBIERTA DE FORMAICA,VIDRIOS Y 2 MUEBLES DE MELAMINA E INSTALACION "]
[658,"15 DE MARZO DE 2018","EMILIO GONZALEZ DELGADILLO",{"v":135966.4,"d":"$135,966.40"},"PAGO DE NOMINA PRIMER QUINCENA DE MARZO 2018"]
[659,"15 DE MARZO DE 2018","CANCELADO",{"v":20050,"d":"$20,050.00"},"PAGO DE COMBUSTIBLE DEL 08 AL 14 DE MARZO DE 2018"]
[660,"15 DE MARZO DE 2018","JOSE VICENTE ROMERO RUIZ",{"v":20050,"d":"$20,050.00"},"PAGO DE COMBUSTIBLE DEL 08 AL 14 DE MARZO DE 2018"]
[661,"15 DE MARZO DE 2018","JOSE VICENTE ROMERO RUIZ",{"v":20050,"d":"$20,050.00"},"PAGO DE COMBUSTIBLE DEL 08 AL 14 DE MARZO DE 2018"]
[662,"15 DE MARZO DE 2018","CANCELADO",{"v":754,"d":"$754.00"},"PAGO DE SERVICIO DE GRUA PARA TRASLADO DE TRANSFORMADOR DE TENSA A SAMAPA "]
[663,"15 DE MARZO DE 2018","ARTEMIA LOPEZ MONTER",{"v":508,"d":"$508.00"},"PAGO DE COMPLEMENTO DE RENTA DEL MES DE MARZO DE 2018 (SAMAPA)"]
[664,"16 DE MARZO DE 2018","RITA ZUÑIGA LOPEZ",{"v":2000,"d":"$2,000.00"},"PRESTAMO PERSONAL A EMPLEADA "]
[665,"16 DE MARZO DE 2018","BENJAMIN ALMADA LEMUS ",{"v":2000,"d":"$2,000.00"},"PAGO DE RENTA CORRESPONDIENTE AL MES DE MARZO 2018, DEL LOCAL QUE OCUPA LA OFICINA  SAMAPA EN LA LOCALIDAD DE LA CAPILLA."]
[666,"16 DE MARZO DE 2018","CANCELADO",{"v":1000,"d":"$1,000.00"},"APOYO A CHOFER DE PIPA DEL ESTADO "]
[667,"16 DE MARZO DE 2018","EFRAIN ESTRADA MEJIA",{"v":1000,"d":"$1,000.00"},"APOYO A CHOFER DE PIPA DEL ESTADO "]
[668,"16 DE MARZO DE 2018","TECNOELECTRICA NACIONAL SA DE CV",{"v":35000,"d":"$35,000.00"},"ANTICIPO DE REPARACION DE  TRANSFORMADOR 112.5 KVA"]
[669,"21 DE MARZO DE 2018","CFE SUMINISTRADOR DE SERVICIOS BASICOS ",{"v":716178,"d":"$716,178.00"},"PAGO DE ENERGIA ELECTRICA DEL MES DE FEBRERO 2018"]
[670,"21 DE MARZO DE 2018","MARIA ALONDRA BARRERA CONTRERAS",{"v":5000,"d":"$5,000.00"}," FINIQUITO "]
[671,"21 DE MARZO DE 2018","ALBERTO HERNANDEZ VELAZQUEZ",{"v":71340,"d":"$71,340.00"},"MATERIAL UTILIZADO EN POZO DE ABASTECIMIENTO DE AGUA EN FRACCIONAMIENTO PUERTA DEL SOL"]
[672,"21 DE MARZO DE 2018","JUAN MIGUEL TREJO ROMERO",{"v":22272,"d":"$22,272.00"},"EXCAVACION DE LINEA DE AGUA EN ZANJAS DONDE DESCARGAN PLANTA DE TRATAMIENTO"]
[673,"21 DE MARZO DE 2018","ARCENIO GOMEZ GUTIEREZ",{"v":9242.63,"d":"$9,242.63"},"MATERIAL UTILIZADO PARA REPARACIONES DE FUGAS EN LA LOCALIDADA DE LA CAPILLA"]
[674,"22 DE MARZO DE 2018","ALBERTO HERNANDEZ VELAZQUEZ",{"v":342810.94,"d":"$342,810.94"},"OBRA DE RED DE AGUA DE 570 MTS EN EL CAMINO CEDROS - BUENAVISTA"]
[675,"22 DE MARZO DE 2018","RAUL PEREZ LAZCANO",{"v":1000,"d":"$1,000.00"},"PRESTAMO PERSONAL A EMPLEADO"]
[676,"23 DE MARZO DE 2018","ALBERTO HERNANDEZ VELAZQUEZ",{"v":55680,"d":"$55,680.00"},"OBRA DE 25 MTS DE AGUA Y DRENAJE EN LA CALLE ING. ESTEBAN SOTO RUIZ EN LUIS GARCIA"]
[677,"23 DE MARZO DE 2018","TUBERIAS Y CONEXIONES DEL LAGO SA DE CV",{"v":18105.7,"d":"$18,105.70"},"MATERIAL PARA LAS DIFERENTES CUADRILLAS (SAMAPA) Y PARA ALMACEN"]
[678,"23 DE MARZO DE 2018","ELECTRICA 2004 SA DE CV",{"v":33581.42,"d":"$33,581.42"},"AMPLIACION DE PRESUPUESTO DE LA PTAR DEL FRACCIONAMIENTO      SABINOS I"]
[679,"23 DE MARZO DE 2018","COMERCIALIZADORA INDUSTRIAL DE ZAPOPAN SA DE CV",{"v":19917.2,"d":"$19,917.20"},"4 CLORIMETRO PARA MUESTRAS DOMICILIARIAS, 100 PASTILLAS  DPD 1, 3750 KGM HIPOCLORITO DE SODIO AL 13 %"]
[680,"23 DE MARZO DE 2018","FELICIANO GARCIA PEREZ",{"v":900,"d":"$900.00"},"FLOTADOR ELECTRICO PARA TANQUE ELEVADO DE SANTA ROSA."]
[681,"23 DE MARZO DE 2018","FELICIANO GARCIA PEREZ",{"v":3000,"d":"$3,000.00"},"REPARACION DE BOMBA SUMERGIBLE PARA SUMIDERO (AZOLBE) DE 5 H.P 440 VOLTS, CAMBIO DE CABLE ACEITE Y SERVICIO, PARA FRACCIONAMIENTO VALLE DE LOS SABINOS III"]
[682,"23 DE MARZO DE 2018","JOSE VICENTE ROMERO RUIZ",{"v":23050,"d":"$23,050.00"},"PAGO DE COMBUSTIBLE DEL 15 AL 21 DE MARZO DE 2018"]
[683,"23 DE MARZO DE 2018","RODRIGUEZ  VELASCO ALEJANDRO",{"v":14732,"d":"$14,732.00"},"REPARACION A VEHICULO ASIGNADO AL AREA DE SAMAPA  DE MOTOR  2.0 DE CHEVY LUV 99, REPARACION DE CABEZA EMPACADO COMPLETO Y SERVICIO DE MANO DE OBRA"]
[684,"23 DE MARZO DE 2018","JORGE ANDRES MANCILLA CASTILLO",{"v":5678.2,"d":"$5,678.20"},"2 TONER SAMSUNG G M4072U EXTRA ALTO REND. 2 TONER SAMSUNG G      M-28752885 ALTO REND."]
[685,"23 DE MARZO DE 2018","JESUS ALEJANDRO FLORES BERNARDO",{"v":1733.7,"d":"$1,733.70"},"GASTOS A COMPROBAR"]
[686,"23 DE MARZO DE 2018","ALBERTO HERNANDEZ VELAZQUEZ",{"v":165647,"d":"$165,647.00"},"SUMINISTRO E INSTALACION DE EQUIPO DE BOMBEO EN POZO 2 DE IXTLAHUACAN DE LOS MEMBRILLOS, JAL."]
[687,"28 DE MARZO DE 2018","EMILIO GONZALEZ DELGADILLO","CANCELADO","PAGO A CFE"]
[688,"28 DE MARZO DE 2018","EMILIO GONZALEZ DELGADILLO",{"v":1200000,"d":"$1,200,000.00"},"PAGO A CFE"]
[689,"28 DE MARZO DE 2018","EMILIO GONZALEZ DELGADILLO",{"v":22582.8,"d":"$22,582.80"},"COMPLEMENTO DE NOMINA CORRESPONDIENTE A SEGUNDA QUINCENA DE MARZO 2018 ( PERSONAL QUE NO CUENTA CON TARJETA)"]
[690,"28 DE MARZO DE 2018","JOSE VICENTE ROMERO RUIZ",{"v":16300,"d":"$16,300.00"},"PAGO DE COMBUSTIBLE DEL 22 AL 27 DE MARZO DE 2018"]
[691,"28 DE MARZO DE 2018","FELIPE HERRERA ENCISO",{"v":3892.96,"d":"$3,892.96"},"MATERIAL PARA ALMACEN Y LAS DIFERENTES CUADRLLAS (SAMAPA)"]
[692,"28 DE MARZO DE 2018","FELICIANO GARCIA PEREZ",{"v":13108,"d":"$13,108.00"},"REPARACION DE BOMBA DE LODOS QUE SE ENCUENTRA EN CARCAMO DE FRACCIONAMIETO VALLE DE LOS SABINOS III"]
[693,"28 DE MARZO DE 2018","EFRAIN ESTRADA MEJIA","CANCELADO","FLOTADOR ELECTRICO PARA TANQUE ELEVADO DE SANTA ROSA."]
[694,"04 DE ABRIL DE 2018","ARTEMIA LOPEZ MONTER",{"v":8008.04,"d":"$8,008.04"},"PAGO DE RENTA DEL MES DE ABRIL DE 2018 (SAMAPA)"]
[695,"05 DE ABRIL DE 2018","JOSE VICENTE ROMERO RUIZ","CANCELADO","PAGO DE COMBUSTIBLE DEL 28 DE MARZO AL 04 DE ABRIL 2018"]
[696,"05 DE ABRIL DE 2018","JOSE VICENTE ROMERO RUIZ",{"v":21050,"d":"$21,050.00"},"PAGO DE COMBUSTIBLE DEL 28 DE MARZO AL 04 DE ABRIL 2018"]
[697,"05 DE ABRIL DE 2018","FRANCISCO JAVIER HERRERA ENCISO ","CANCELADO","REFACCIONES PARA VACTOR Y PIPAS ASIGNADAS AL AREA DE SAMAPA"]
[698,"05 DE ABRIL DE 2018","FRANCISCO JAVIER HERRERA ENCISO ",{"v":3362.84,"d":"$3,362.84"},"REFACCIONES PARA VACTOR Y PIPAS ASIGNADAS AL AREA DE SAMAPA"]
[699,"06 DE ABRIL DE 2018","INGENIERIA EN EDIFICACIONES, CAMINOS Y ESTRUCTURAS SA DE CV","CANCELADO","BOMBA PARA AGUA DE 3\" MARCA HONDA DE 8HP, PARA PIPA QUE ESTA ADSCRITA A SONA LA CAPILLA"]
[700,"09 DE ABRIL DE 2018","ALBERTO HERNANDEZ VELAZQUEZ",{"v":353800,"d":"$353,800.00"},"OBRA DE RED DE AGUA EN EL FRACCIONAMIENTO BUENAVISTA"]
[701,"09 DE ABRIL DE 2018","EMILIO GONZALEZ DELGADILLO",{"v":9686,"d":"$9,686.00"},"GASTOS A COMPROBAR"]
[702,"10 DE ABRIL DE 2018","MIGUEL ANGEL FLORES MUÑOZ",{"v":1357.2,"d":"$1,357.20"},"REPARACION DE MARTILLO DEMOLEDOR (MAKITA)"]
[703,"11 DE ABRIL DE 2018","JESUS ALEJANDRO FLORES BERNANRDO",{"v":1898,"d":"$1,898.00"},"GASTOS A COMPROBAR"]
[704,"12 DE ABRIL DE 2018","RODRIGUEZ VELASCO ALEJANDRO",{"v":2911.6,"d":"$2,911.60"},"REFACCIONES PARA VEHICULO CHEVROLET LUV, ASIGNADO AL AREA DE SAMAPA"]
[705,"12 DE ABRIL DE 2018","RODRIGUEZ VELASCO ALEJANDRO",{"v":10933,"d":"$10,933.00"},"REPARACION COMPLETA A VEHICULO FORD F250 MODELO 2001, ASIGNADA A SAMAPA"]
[706,"12 DE ABRIL DE 2018","RODRIGUEZ VELASCO ALEJANDRO",{"v":1624,"d":"$1,624.00"},"SERVICIO DE AFINACION A VEHICULO FORD PICK UP, ASIGNADO A EL AREA DE SAMAPA"]
[707,"12 DE ABRIL DE 2018","JOSE VICENTE ROMERO RUIZ",{"v":24650,"d":"$24,650.00"},"PAGO DE COMBUSTIBLE DEL 05 AL 11 DE ABRIL DE 2018"]
[708,"12 DE ABRIL DE 2018","FRANCISCO JAVIER HERRERA ENCISO","CANCELADO","REFACCIONES PARA VACTOR Y PIPAS ASIGNADAS AL AREA DE SAMAPA"]
[709,"12 de abril 2018",null,"CANCELADO"]
[710,"12 DE ABRIL DE 2018","FRANCISCO JAVIER HERRERA ENCISO",{"v":6049.4,"d":"$6,049.40"},"REFACCIONES PARA VACTOR Y PIPAS ASIGNADAS AL AREA DE SAMAPA"]
[711,"12 DE ABRIL DE 2018","FELIPE HERRERA ENCISO",{"v":4362.28,"d":"$4,362.28"},"MATERIAL UTILIZADO PARA REPARAR FUGAS EN LAS DIFERENTES LOCALIDADES DEL MUNICIPIO"]
[712,"12 DE ABRIL DE 2018","TUBERIAS Y CONEXIONES DEL LAGO SA DE CV",{"v":18373.45,"d":"$18,373.45"},"MATERIAL  PARA LAS DIFERENTES CUADRILLAS ASIGNADAS AL AREA DE SAMAPA"]
[713,"12 DE ABRIL DE 2018","MARIA TERESA RAMIREZ ROSAS",{"v":1807.92,"d":"$1,807.92"},"LATAS DE PINTURA UTILIZADAS EN LA REMODELACION DE OFICINA SAMAPA QUE SE ENCUENTRA EN LA LOCALIDAD DE LA CAPILLA"]
[714,"13 DE ABRIL DE 2018","EMILIO GONZALEZ DELGADILLO",{"v":32157.2,"d":"$32,157.20"},"COMPLEMENTO DE PAGO DE NOMINA CORRESPONDIENTE A PRIMER QUINCENA DE ABRIL 2018  ( PERSONAL QUE NO CUENTA CON TARJETA DE COBRO)"]
[715,"13 DE ABRIL DE 2018","MIGUEL ANGEL ZARAGOZA ZARAGOZA",{"v":2500,"d":"$2,500.00"},"PRESTAMO PERSONAL A EMPLEADO"]
[716,"16 DE ABRIL DE 2018","VMCE PROVIDENCIA SA DE CV",{"v":6380,"d":"$6,380.00"},"POR SACAR EQUIPO DE BOMBEO, POZO DE BUENAVISTA."]
[717,"17 DE ABRIL DE 2018","EFRAIN ESTRADA MEJIA",{"v":1000,"d":"$1,000.00"},"APOYO A CHOFER DE PIPA DEL ESTADO"]
[718,"18 DE ABRIL DE 2018","JOSE LUIS ZARATE NAVARRO",{"v":11832,"d":"$11,832.00"},"REPARACION DE PIPA ASIGNADA AL AREA DE SAMAPA"]
[719,"19 DE ABRIL DE 2018","JORGE ANDRES MANCILLA CASTILLO",{"v":8929.89,"d":"$8,929.89"},"2 TONER SAMSUNG G M4072U EXTRA ALTO REND., 2 TONER SAMSUNG M-28752885DN ORIGINAL 116L Y 2 UNIDAD DE IMAGEN SAMSUNG M-28752885FD ORIGINAL"]
[720,"19 DE ABRIL DE 2018","CINDY CACHUA VILLA",{"v":4593.6,"d":"$4,593.60"},"REPARACION  DE BOMBA DE ALTA PRECION DEL CAMION TIPO VACTOR."]
[721,"19 DE ABRIL DE 2018","JOSE VICENTE ROMERO RUIZ",{"v":26130,"d":"$26,130.00"},"PAGO DE COMBUSTIBLE DEL 12 AL 18 DE ABRIL DE 2018"]
[722,"19 DE ABRIL DE 2018","ARCENIO GOMEZ GUTIERREZ",{"v":1261.26,"d":"$1,261.26"},"MATERIAL UTILIZADO EN CARCAMO DEL FRACCIONAMIENTO VALLE DE LOS SABINOS III"]
[723,"19 DE ABRIL DE 2018","TUBERIAS Y CONEXIONES DEL LAGO SA DE CV",{"v":41887.52,"d":"$41,887.52"},"MATERIAL PARA ALMACEN Y LAS DIFERENTES CUADRILLAS (SAMAPA)"]
[724,"19 DE ABRIL DE 2018","SERGIO HERRERA ENCISO",{"v":5141.12,"d":"$5,141.12"},"MATERIAL SOLICITADO PARA CONSTRUCCION DE REGISTRO EN LA CALLE RAMOS MILLAN, EN CABECERA MUNICIPAL."]
[725,"20 DE ABRIL DE 2018","EMILIO GONZALEZ DELGADILLO",{"v":14384,"d":"$14,384.00"},"GASTOS A COMPROBAR"]
[726,"24 DE ABRIL DE 2018","EMILIO GONZALEZ DELGADILLO",{"v":754,"d":"$754.00"},"GASTOS A COMPROBAR"]
[727,"24 DE ABRIL DE 2018","CFE SUMINISTRADOR DE SERVICIOS BASICOS ",{"v":868662,"d":"$868,662.00"},"PAGO DE ENERGIA ELECTRICA DEL MES DE MARZO 2018"]
[728,"26 DE ABRIL DE 2018","JOSE VICENTE ROMERO RUIZ",{"v":21450,"d":"$21,450.00"},"PAGO DE COMBUSTIBLE DEL 19 AL 25 DE ABRIL 2018"]
[729,"26 DE ABRIL DE 2018","TECNOELECTRICA NACIONAL S.A. DE C.V.",{"v":438,"d":"$438.00"},"COMPLEMENTO DE PAGO DE REPARACION DE TRANSFORMADOR 112.5 KVA REFERIDO EN FACTURA 3491 EN CHEQUE 668 EL DIA 16/03/2018"]
[730,"26 DE ABRIL DE 2018","CINDY CACHUA VILLA",{"v":7076,"d":"$7,076.00"},"PAGO DE TUBO EXTENSION DE ALUMINO DE 72\" Y ABRAZADERA DE CONEXIÓN RAPIDA PARA PIPA (VACTOR)"]
[731,"26 DE ABRIL DE 2018","DANIEL VAZQUEZ VAZQUEZ",{"v":2000,"d":"$2,000.00"},"PAGO POR REPARACION DE TINACO DE AGUA POTABLE (SOLDADURA Y REFUERZOS) EN LA LOCALIDAD DE SANTANA DE LOS CEDROS"]
[732,"27 DE ABRIL DE 2018","EMILIO GONZALEZ DELGADILLO",{"v":33777,"d":"$33,777.00"},"COMPLEMENTO DE NOMINA CORRESPONDIENTE A SEGUNDA QUINCENA DE ABRIL 2018 (PERSONAL QUE NO CUENTA CON TARJETA)"]
[733,"27 DE ABRIL DE 2018","CFE SUMINISTRADOR DE SERVICIOS BASICOS ",{"v":11677,"d":"$11,677.00"},"COMPLEMENTO DE PAGO DE ENERGIA ELECTRICA CORRESPONDIENTE AL MES DE MARZO DE 2018"]
[734,"30 DE ABRIL DE 2018","RAMIRO RENTERIA GUTIERREZ",{"v":1000,"d":"$1,000.00"},"PRESTAMO PERSONAL A EMPLEADO"]
[735,"02 DE MAYO DE 2018","JORGE ANDRES MANCILLA CASTILLO",{"v":3688.45,"d":"$3,688.45"},"1 TONER SAMSUNG G M4072U EXTRA ALTO REND. Y 1 CARTUCHO DE TONER LASERJET HP 87A NEGRO (CF287A)"]
[736,"02 DE MAYO DE 2018","EFRAIN ESTRADA MEJIA",{"v":1000,"d":"$1,000.00"},"APOYO A CHOFER DE PIPA DEL ESTADO"]
[737,"03 DE MAYO DE 2018","GUILLERMO SANDOVAL LUNA",{"v":5000,"d":"$5,000.00"},"PRESTAMO PERSONAL A EMPLEADO"]
[738,"03 DE MAYO DE 2018","JOSE ANTONIO CONTRERAS LOPEZ",{"v":500,"d":"$500.00"},"TRABAJO DE SOLDADURA DE 4 OREJAS PARA CANDADO DE 2 TAPAS DE REGISTRO DE AGUA DE POZO # 2 DE IXTLAHUACAN DE LOS MEMBRILLOS"]
[739,"03 DE MAYO DE 2018","JOSE VICENTE ROMERO RUIZ",{"v":24250,"d":"$24,250.00"},"PAGO DE COMBUSTIBLE DEL 26 DE ABRIL AL 02 DE MAYO DE 2018"]
[740,"03 DE MAYO DE 2018","FRANCISCO JAVIER HERRERA ENCISO",{"v":1719.12,"d":"$1,719.12"},"REFACCIONES PARA LOS DIFERENTES VEHICULOS ASIGNADOS AL AREA DE SAMAPA"]
[741,"03 DE MAYO DE 2018","RICARDO SANCHEZ LOPEZ",{"v":1682,"d":"$1,682.00"},"REPARACION DE MOTOBOMBA QUE SE UTILIZA EN EL CAMION TIPO PIPA PARA EL REPARTO DE AGUA"]
[742,"03 DE MAYO DE 2018","ARTEMIA LOPEZ MONTER",{"v":8008.04,"d":"$8,008.04"},"PAGO DE RENTA DEL MES DE MAYO DE 2018 (SAMAPA)"]
[743,"03 DE MAYO DE 2018","JOSE RIGOBERTO LOPEZ GONZALEZ",{"v":1856,"d":"$1,856.00"},"REPARACION A CAMIONETA FORD BLANCA 92, ASIGNADA AL AREA DE SAMAPA"]
[744,"03 DE MAYO DE 2018","TUBERIAS Y CONEXIONES DEL LAGO SA DE CV",{"v":18521.88,"d":"$18,521.88"},"MATERIAL PARA ALMACEN Y REPARACIONES DE FUGAS EN LAS DIFERENTES LOCALIDADES "]
[745,"03 DE MAYO DE 2018","TECNOELECTRICA NACIONAL S.A. DE C.V.",{"v":2030,"d":"$2,030.00"},"SERVICIO DE GRUA PARA EL TRANSFORMADOR E INSTALACION DEL MISMO EN LA LOCALIDAD DE LA CAPILLA"]
[746,"03 DE MAYO DE 2018","JESUS ALEJANDRO FLORES BERNARDO",{"v":1681.31,"d":"$1,681.31"},"GASTOS A COMPROBAR"]
[747,"03 DE MAYO DE 2018","MARTHA ELIZABETH MUÑOZ GUTIERREZ",{"v":37889.4,"d":"$37,889.40"},"76 TRAMOS DE TUBO PVC HCO RD-26 4\" EL CUAL SE INSTALARA EN CAMINO CEDROS-BUENAVISTA"]
[748,"03 DE MAYO DE 2018","ALBERTO HERNANDEZ VELAZQUEZ",{"v":284929,"d":"$284,929.00"},"EQUIPAMIENTO PARA POZO BUENAVISTA"]
[749,"03 DE MAYO DE 2018","JOSE CARLOS GUTIERREZ FLORES",{"v":4131.92,"d":"$4,131.92"},"MATERIAL UTILIZADO PARA REPARACION DE FUGAS EN LA LOCALIDAD DE ATEQUIZA"]
[750,"04 DE MAYO DE 2018","SERGIO HERRERA ENCISO",{"v":8015.6,"d":"$8,015.60"},"MATERIAL SOLICITADO PARA ALMACEN Y REPARACIONES DE FUGAS EN LAS DIFERENTES LOCALIDADES  DEL MUNICIPIO"]
[751,"04 DE MAYO DE 2018","JESUS ALEJANDRO FLORES BERNARDO",{"v":1199,"d":"$1,199.00"},"GASTOS A COMPROBAR"]
[752,"04 DE MAYO DE 2018","JOSE DE JESUS LOPEZ RIZO",{"v":5000,"d":"$5,000.00"},"PRESTAMO PERSONAL A EMPLEADO"]
[753,"04 DE MAYO DE 2018","ROBERTO GARCIA NAVARRO ",{"v":5000,"d":"$5,000.00"},"POR CUBRIR VACACIONES A BOMBEROS DE CEDROS, RINCONADAS LAS LOMAS Y  LOMAS DE LA CAPILLA."]
[754,"08 DE MAYO DE 2018","MARCO ANTONIO RAMIREZ BRAVO ",{"v":21808,"d":"$21,808.00"},"47 HORAS DE SERVICIO DE RETROEXCAVADORA PARA RED DE AGUA POTABLE EN LA LOCALIDAD DE CEDROS."]
[755,"08 DE MAYO DE 2018","J. TRINIDAD NUÑEZ BRITO",{"v":11600,"d":"$11,600.00"},"ESTUDIO GEOFISICO REALIZADO  EN LA CABECERA MUNICIPAL DE IXTLAHUACAN DE LOS MEMBRILLOS, JAL. (SAMAPA)"]
[756,"08 DE MAYO DE 2018","EMILIO GONZALEZ DELGADILLO",{"v":12760,"d":"$12,760.00"},"GASTOS A COMPROBAR (MATERIAL JAL, PARA LA RED DE AGUA POTABLE DE LA LOCALIDAD DE CEDROS)"]
[757,"09 DE MAYO DE 2018","ARACELI DURAN MOLINA",{"v":80921.6,"d":"$80,921.60"},"LIMPIEZA DE POZO BUENAVISTA-CEDROS,VIDEOGRAVACION DE PROFUNDIDAD Y REPARACION DE BOMBA SUMERGIBLE"]
[758,"09 DE MAYO DE 2018","RIVERA TORRES JESSICA",{"v":43450,"d":"$43,450.00"},"SUMINISTRO E INSTALACION DE EQUIPO DE BOMBEO MARCA ALTAMIRA EN 6\" PARA FRACCIONAMIENTO VALLE DE LOS  SABINOS I"]
[759,"09 DE MAYO DE 2018","ASCENCIO INDUSTRIAL ELECTRICA S.A. DE C.V.",{"v":4028.73,"d":"$4,028.73"},"INTERRUPTOR TEGNOMAGNETICO PARA PLANTA DE FRACCIONAMIENTO VALLE DE LOS GIRASOLES"]
[760,"11 DE MAYO DE 2018","JOSE VICENTE ROMERO RUIZ",{"v":22950,"d":"$22,950.00"},"PAGO DE COMBUSTIBLE DEL 03 AL 09 DE MAYO DE 2018"]
[761,"11 DE MAYO DE 2018","RADIADORES MOFLES Y REFACCIONARIA CLIPPER SA DE CV",{"v":10100,"d":"$10,100.00"},"REPARACION DE RADIADOR DEL CAMION TIPO VACTOR ASIGNADO A SAMAPA"]
[762,"14 DE MAYO DE 2018","CANCELADO",{"v":35284.8,"d":"$35,284.80"},"COMPLEMENTO DE NOMINA CORRESPONDIENTE A PRIMER QUINA DE MAYO 2018 (PERSONAL QUE NO CUENTA CONTARJETA)"]
[763,"14 DE MAYO DE 2018","EMILIO GONZALEZ DELGADILLO",{"v":35284.8,"d":"$35,284.80"},"COMPLEMENTO DE NOMINA CORRESPONDIENTE A PRIMER QUINCENA DE MAYO 2018 (PERSONAL QUE NO CUENTA CON TARJETA)"]
[764,"14 DE MAYO DE 2018","CARLOS ORTIZ ZAMORA",{"v":21668.4,"d":"$21,668.40"},"FINIQUITO A PERSONA QUE SE ENCONTRABA EN AREA ADMINISTRATIVO"]
[765,"14 DE MAYO DE 2018","ELVIRA ALEJANDRA GARCIA ACEVES",{"v":3825,"d":"$3,825.00"},"FINIQUITO A PERSONA QUE SE ENCONTRABA EN AREA ADMINISTRATIVA"]
[766,"15 DE MAYO DE 2018","RAFAEL CORTES HERNANDEZ",{"v":522,"d":"$522.00"},"RECORTE DE TAPA DE REGISTRO PARA EL POZO DE AGUA DE LA CAPILLA"]
[767,"15 DE MAYO DE 2018","MARCO ANTONIO PAREDES CERVANTES",{"v":2000,"d":"$2,000.00"},"PRESTAMO PERSONAL A EMPLEADO"]
[768,"15 DE MAYO DE 2018","MARIA LUISA PEREZ CONTRERAS",{"v":2000,"d":"$2,000.00"},"PAGO DE RENTA DEL MES DE ABRIL Y MAYO DEL LOCAL QUE UTILIZA LA OFICINA DE SAMAPA, EN LA LOCALIDAD DE LA CAPILLA."]
[769,"16 DE MAYO DE 2018","JORGE ANDRES MANCILLA CASTILLO",{"v":2272.76,"d":"$2,272.76"},"2 TONER SAMSUNG G M-2875/2885 ALTO REND."]
[770,"16 DE MAYO DE 2018","EFRAIN ESTRADA MEJIA",{"v":1000,"d":"$1,000.00"},"APOYO A CHOFER DE PIPA DEL ESTADO"]
[771,"16 DE MAYO DE 2018","JOSE AGUSTIN JIMENEZ GUERRERO",{"v":9280,"d":"$9,280.00"},"SUMINISTRO Y COLOCACION DE TUBERIA DE 8\" PARA PLANTA TRATADORA DE AGUAS RESIDUALES DE FRACCIONAMIENTO SABINOS I"]
[772,"18 DE MAYO DE 2018","JOSE VICENTE ROMERO RUIZ",{"v":26468,"d":"$26,468.00"},"PAGO DE COMBUSTIBLE DEL 10 AL 16 DE MAYO DE 2018"]
[773,"18 DE MAYO DE 2018","CANCELADO",{"v":26468,"d":"$26,468.00"},"PAGO DE COMBUSTIBLE DEL 10 AL 16 DE MAYO DE 2018"]
[774,"18 DE MAYO DE 2018","COMERCIALIZADORA INDUSTRIAL DE ZAPOPAN SA DE CV",{"v":19140,"d":"$19,140.00"},"PAGO DE 3,750 KG DE HIPOCLORITO DE SODIO AL 13 % PARA LAS DIFERENTES FUENTES DE ABASTECIMIENTO DE AGUA"]
[775,"18 DE MAYO DE 2018","ISRAEL CERVANTES ALATORRE",{"v":1274.99,"d":"$1,274.99"},"PAGO DE PLACA DE 1\" (17\"X17\") UTILIZADA EN POZO CEDROS-BUENAVISTA"]
[776,"18 DE MAYO DE 2018","CAMIONERA DE JALISCO, SA DE CV",{"v":2721.8,"d":"$2,721.80"},"MANGUERA DE AGUA ENFRIADORA PARA PIPA ASIGNADA A SAMAPA"]
[777,"18 DE MAYO DE 2018","JUAN JOSE VAZQUEZ URRUTIA",{"v":5000,"d":"$5,000.00"},"GASTOS A COMPROBAR"]
[778,"18 DE MAYO DE 2018","JORGE ANDRES MANCILLA CASTILLO",{"v":2620.02,"d":"$2,620.02"},"DISCO DURO EXTERNO ADATA HD710 1 TB 3.0 , UNIDAD DE IMAGEN G SAMSUNG SL-M28752885"]
[779,"18 DE MAYO DE 2018","MARCO ANTONIO RAMIREZ BRAVO",{"v":13340,"d":"$13,340.00"},"SERVICIO DE RETROEXCAVADORA PARA DESAZOLBE DE SANJA EN RINCONADA LAS LOMAS"]
[780,"18 DE MAYO DE 2018","EMILIO GONZALEZ DELGADILLO",{"v":2000,"d":"$2,000.00"},"PRESTAMO PERSONAL A EMPLEADO"]
[781,"21 DE MAYO DE 2018","SANTOS RUIZ VELAZQUEZ",{"v":2000,"d":"$2,000.00"},"POR SOLDAR TINACO DE AGUA QUE SE ENCUENTRA EN LA LOCALIDAD DE EL RODEO"]
[782,"21 DE MAYO DE 2018","VMCE PROVIDENCIA SA DE CV",{"v":195228,"d":"$195,228.00"},"POR DAR MANTENIMIENTO A POZOS DE LAS DIFERENTES LOCALIDADES DE ESTA CABECERA MUNICIPAL."]
[783,"21 DE MAYO DE 2018","MIGUEL ANGEL TREJO ROMERO","CANCELADO","LIMPIEZA DE CALLE VISTA HERMOSA EN FRACCIONAMIENTO BUENAVISTA"]
[784,"22 DE MAYO DE 2018","RAUL PEREZ LAZCANO",{"v":3000,"d":"$3,000.00"},"PRESTAMO PERSONAL A EMPLEADO"]
[785,"22 DE MAYO DE 2018","CA NCELADO",{"v":130523.2,"d":"$130,523.20"},"TABLERO PARA SISTEMA DE VELOCIDAD VARIABLE PRESION CONSTANTE, MINIMA DE 15 MTS COLUMNA DE AGUA,PARA POZO DEL FRACC. SABINOS IV"]
[786,"22 DE MAYO DE 2018","JOSE AGUSTIN JIMENEZ GUERRERO",{"v":112250,"d":"$112,250.00"},"TABLERO PARA SISTEMA DE VELOCIDAD VARIABLE PRESION CONSTANTE, MINIMA DE 15 MTS COLUMNA DE AGUA,PARA POZO DEL FRACC. SABINOS IV"]
[787,"23 DE MAYO DE 2018","FELICIANO GARCIA PEREZ",{"v":8816,"d":"$8,816.00"},"SERVICIO DE MANTENIMIENTO GENERAL A MOTOBOMBA CENTRIFUGA DE 25 HP PARA EL REBOMBEO DEL FRACC. VALLE DE LOS SABINOS I."]
[788,"23 DE MAYO DE 2018","FELICIANO GARCIA PEREZ",{"v":1800,"d":"$1,800.00"},"2 FLOTADORES ELECTRICOS, TIPO CHORIZO PARA LA LOCALIDAD DE EL RODEO POZO 1 Y 2."]
[789,"23 DE MAYO DE 2018","OSCAR CARDENAS URIBE","CANCELADO","REPARACION DE CRISTALES LATERALES Y ELEVADORES DE PIPA ASIGNADA A LA LOCALIDAD DE LA CAPILLA"]
[790,"23 DE MAYO DE 2018","EMILIO GONZALEZ DELGADILLO",{"v":2721.8,"d":"$2,721.80"},"GASTOS A COMPROBAR"]
[791,"24 DE MAYO DE 2018","JOSE RAMIREZ CARRERO",{"v":720,"d":"$720.00"},"PARCHADA DE LLANTAS DE PIPA DEL ESTADO, UTILIZADA EN EL REPARTO DE AGUA POTABLE EN LA LOCALIDAD DE LA CAPILLA!!!"]
[792,"24 DE MAYO DE 2018","OSCAR CARDENAS URIBE",{"v":6032,"d":"$6,032.00"},"REPARACION DE CRISTALES DELANTALES Y ELEVADORES DE PIPA ASIGNADA A LA LOCALIDAD DE LA CAPILLA."]
[793,"24 DE MAYO DE 2018","JOSE VICENTE ROMERO RUIZ",{"v":24400,"d":"$24,400.00"},"PAGO DE COMBUSTIBLE DEL 17 AL 23 DE MAYO DEL 2018"]
[794,"24 DE MAYO DE 2018","TUBERIAS Y CONEXIONES DEL LAGO SA DE CV",{"v":14405.8,"d":"$14,405.80"},"MATERIAL SOLICITADO PARA ALMACEN Y LAS DIFERENTES CUADRILLAS (SAMAPA)"]
[795,"24 DE MAYO DE 2018","RODRIGUEZ VELASCO ALEJANDRO",{"v":5684,"d":"$5,684.00"},"SERVICIO DE MANTENIMIENTO A VEHICULO ASIGNADO AL AREA DE SAMAPA    ( ACEITE, FILTROS, BUJIAS, CABLE DE BUJIAS,BULBO DE PRESION DE ACEITE) Y MANO DE OBRA."]
[796,"25 DE MAYO DE 2018","JOSE CARLOS GUTIERREZ FLORES",{"v":2141.36,"d":"$2,141.36"},"MATERIAL UTILIZADO EN REPARACION DE FUGA EN CALLE PEDRO MORENO EN LA LOCALIDAD DE ATEQUIZA"]
[797,"25 DE MAYO DE 2018","CFE SUMINISTRADOR DE SERVICIOS BASICOS ",{"v":973410,"d":"$973,410.00"},"PAGO DE ENERGIA ELECTRICA DEL MES DE ABRIL DE 2018"]
[798,"25 DE MAYO DE 2018","JESUS ALEJANDRO FLORES BERNARDO",{"v":5310,"d":"$5,310.00"},"GASTOS A COMPROBAR ( PANTALLA Y GPS)"]
[799,"25 DE MAYO DE 2018","JESUS ALEJANDRO FLORES BERNARDO",{"v":1898.9,"d":"$1,898.90"},"GASTOS A COMPROBAR "]
[800,"25 DE MAYO DE 2018","SERGIO HERRERA ENCISO",{"v":9471.4,"d":"$9,471.40"},"MATERIAL PARA LAS DIFERENTES CUADRILLAS SAMAPA"]
[801,"25 DE MAYO DE 2018","FRANCISCO JAVIER HERRERA ENCISO",{"v":2199.36,"d":"$2,199.36"},"MATERIAL PARA LOS DIFERENTES VEHICULOS ASIGNADOS A SAMAPA"]
[802,"25 DE MAYO DE 2018","RIVERA TORRES JESSICA MONTSERRAT",{"v":172499.59,"d":"$172,499.59"},"MOTOR SUMERGIBLE DE 100 HP DE MARCA ALTA MIRA,EXTRACCION PARA MANTENIMIENTO Y CEPILLADO DEL POZO  , EN FRACC. PUERTA DEL SOL "]
[803,"25 DE MAYO DE 2018","RIVERA TORRES JESSICA MONTSERRAT",{"v":8700,"d":"$8,700.00"},"SERVICIO DE DESMANTELAMIENTO DE EQUIPO DE BOMBEO CON COLUMNA DE 3\" Y 4\" A UNA PROFUNDIDAD DE 250 MTS. DEL FRACC. LOMAS DE LA CAPILLA."]
[804,"25 DE MAYO DE 2018","RIVERA TORRES JESSICA MONTSERRAT",{"v":105774.83,"d":"$105,774.83"},"MOTOR SUMERGIBLE DE 75 HP CON SALIDA DE 8\" MODELO MSR8753460, EXTRACCION, CONEXIÓN E INSTALACION EN POZO 2 DE ESTA CABECERA MUNICIPAL."]
[805,"25 DE MAYO DE 2018","RIVERA TORRES JESSICA MONTSERRAT",{"v":29875.8,"d":"$29,875.80"},"2 TRAMOS DE TUBO DE 8\" X 6.20 METROS Y ACCESORIOS PARA CONEXIÓN E INSTALACION EN POZO 2 DE ESTA CABECERA MUNICIPAL"]
[806,"25 DE MAYO DE 2018","RIVERA TORRES JESSICA MONTSERRAT",{"v":33359.76,"d":"$33,359.76"},"BOMBA SUMERGIBLE ALTAMIRA KOR-15 R300-9DE 30 HP, MATERIAL ELECTRICO PARA CONEXIÓN, EXTRACCION E INSTALACION EN POZO 1 DE AGUILILLAS."]
[807,"25 DE MAYO DE 2018","JUAN MANUEL PUGA ESTRELLA",{"v":2888.4,"d":"$2,888.40"},"RENOVACION ANUAL DE PROGRAMA DE FACTURACION ELECTRONICA, SERVICIO DE INSTALACION Y ACTIVACION."]
[808,"25 DE MAYO DE 2018","ANA MARIA FLORES SERRANO",{"v":574.78,"d":"$574.78"},"25 METROS DE CABLE USO RUDO DE 2 X 14 PARA POZO 1 DE LA LOCALIDAD DE EL RODEO"]
[809,"28 DE MAYO DE 2018","JESUS ALEJANDRO FLORES BERNARDO",{"v":12000,"d":"$12,000.00"},"GASTOS A COMPROBAR"]
[810,"28 DE MAYO DE 2018","JESUS ALEJANDRO FLORES BERNARDO",{"v":2615.4,"d":"$2,615.40"},"GASTOS A COMPROBAR"]
[811,"29 DE MAYO DE 2018","EMILIO GONZALEZ DELGADILLO",{"v":6940.4,"d":"$6,940.40"},"COMPLEMENTO DE NOMINA CORRESPONDIENTE A SEGUNDA QUINCENA DE MAYO 2018 (PERSONAL QUE NO CUENTA CON TARJETA)"]
[812,"30 DE MAYO DE 2018","MARTIN ESPARZA CLAUDIO",{"v":2000,"d":"$2,000.00"},"PRESTAMO PERSONAL A EMPLEADO"]
[813,"30 DE MAYO DE 2018","JUAN MIGUEL TREJO ROMERO",{"v":10000,"d":"$10,000.00"},"LIMPIEZA DE CALLE VISTA HERMOSA EN FRACCIONAMIENTO BUENAVISTA"]
[814,"31 DE MAYO DE 2018","CFE SUMINISTRADOR DE SERVICIOS BASICOS ",{"v":15213,"d":"$15,213.00"},"PAGO DE ENERGIA ELECTRICA DEL MES DE ABRIL DE 2018"]
[815,"31 DE MAYO DE 2018","JUAN CARLOS MARTINEZ ROMERO",{"v":9950,"d":"$9,950.00"},"FINIQUITO A  PERSONA ADSCRITA A SAMAPA",null,"AREA TECNICA"]
[816,"31 DE MAYO DE 2018","JOSE AGUSTIN JIMENEZ GUERRERO",{"v":75632,"d":"$75,632.00"},"REPARACION DE SISTEMA DE REBOMBEO DE CARCAMO DE FRACC. VALLE DE LOS SABINOS IV ( SENSOR ULTRASONICO, PLC NVO. Y PROGRAMACION DEL MISMO. "]
[817,"01 DE JUNIO DE 2018","JOSE VICENTE ROMERO RUIZ",{"v":28476,"d":"$28,476.00"},"PAGO DE COMBUSTIBLE DEL 24 AL 30 DE MAYO DE  2018"]
[818,"01 DE JUNIO DE 2018","TUBERIAS Y CONEXIONES DEL LAGO SA DE CV",{"v":13178.08,"d":"$13,178.08"},"MATERIAL SOLICITADO PARA ALMACEN Y LAS DIFERENTES CUADRILLAS SAMAPA"]
[819,"01 DE JUNIO DE 2018","EFRAIN ESTRADA MEJIA",{"v":1000,"d":"$1,000.00"},"APOYO A CHOFER DE PIPA DEL ESTADO"]
[820,"01 DE JUNIO DE 2018","ALBERTO HERNADEZ VELAZQUEZ",{"v":9396,"d":"$9,396.00"},"RETROEXCAVACION EN LA LOCALIDAD DE BUENAVISTA Y EN FRACCIONAMIENTO PUERTA DEL SOL."]
[821,"01 DE JUNIO DE 2018","ARTEMIA LOPEZ MONTER",{"v":8008.04,"d":"$8,008.04"},"PAGO DE RENTA DEL MES DE JUNIO 2018 ( SAMAPA)"]
[822,"04 DE JUNIO DE 2018","JESUS ALEJANDRO FLORES BERNARDO",{"v":6496,"d":"$6,496.00"},"GASTOS A COMPROBAR ( TRASLADO DE EXCAVADORA EN LOBBY A CARCAMO DE GIRASOLES PARA SU LIMPIEZA, Y TRASLADO A FRACC.  RINCONADAS LAS LOMAS PARA DESAZOLBE DE CANAL AFECTADO)"]
[823,"04 DE JUNIO DE 2018","CANCELADO",{"v":6496,"d":"$6,496.00"},"GASTOS A COMPROBAR ( TRASLADO DE EXCAVADORA EN LOBBY A CARCAMO DE GIRASOLES PARA SU LIMPIEZA, Y TRASLADO A FRACC.  RINCONADAS LAS LOMAS PARA DESAZOLBE DE CANAL AFECTADO)"]
[824,"07 DE JUNIO DE 2018","JOSE VICENTE ROMERO RUIZ",{"v":37318.85,"d":"$37,318.85"},"PAGO DE COMBUSTIBLE DEL 31 DE MAYO AL 06 DE JUNIO DE 2018"]
[825,"07 DE JUNIO DE 2018","FRANCISCO JAVIER HERRERA ENCISO",{"v":2047.4,"d":"$2,047.40"}," ACEITES Y ANTICONGELANTE PARA PIPAS Y VACTOR ASIGNADOS A SAMAPA"]
[826,"07 DE JUNIO DE 2018","MARTHA ELIZABETH MUÑOZ GUTIERREZ",{"v":2996.98,"d":"$2,996.98"},"10 TRAMOS DE TUBO DE PVC RD-26 3\" PARA CARCAMO CEDROS-BUENAVISTA"]
[827,"07 DE JUNIO DE 2018","COMERCIALIZADORA INDUSTRIAL DE ZAPOPAN SA DE CV",{"v":17864,"d":"$17,864.00"},"3,500 KG DE HIPOCLORITO DE SODIO AL 13 % PARA LAS DIFERENTES FUENTES DE ABASTECIMIENTO DEL MUNICIPIO"]
[828,"07 DE JUNIO DE 2018","TECNOELECTRICA NACIONAL S.A. DE C.V.",{"v":2436,"d":"$2,436.00"},"SERVICIO DE GRUA PARA EL CAMBIO DE TRASFORMADOR EN EL FRACCIONAMIENTO PUERTA DEL SOL."]
[829,"08 DE JUNIO DE 2018","FELICIANO GARCIA PEREZ",{"v":13340,"d":"$13,340.00"},"REPARACION DE BOMBA DE REBOMBEO DE 20 HP DEL FRACIONAMIENTO VALLE DE LOS OLIVOS 1"]
[830,"08 DE JUNIO DE 2018","FELICIANO GARCIA PEREZ",{"v":2800,"d":"$2,800.00"},"REPARACION DE BOMBA DE AGUA TIPO SUMERGIBLE DE 1/2 HP DEL POZO DE LA MISERIA."]
[831,"08 DE JUNIO DE 2018","FELICIANO GARCIA PEREZ",{"v":10440,"d":"$10,440.00"},"REPARACION DE BOMBA DE LODOS QUE SE ENCUENTRA EN PLANTA TRATADORA DE AGUAS RESIDUALES DE FRACCIONAMIENTO VALLE DE LOS SABINOS 1"]
[832,"08 DE JUNIO DE 2018","CANCELADO",{"v":20000,"d":"$20,000.00"},"GASTOS A COMPROBAR (MATERIAL UTILIZADO PARA EMPEDRAR CALLE FCO. I MADERO EN LA LOCALIDAD DE LOS CEDROS)"]
[833,"08 DE JUNIO DE 2018","JESUS ALEJANDRO FLORES BERNARDO",{"v":23200,"d":"$23,200.00"},"GASTOS A COMPROBAR (MATERIAL UTILIZADO PARA EMPEDRAR CALLE FCO. I MADERO EN LA LOCALIDAD DE LOS CEDROS)"]
[834,"13 DE JUNIO DE 2018","EMILIO GONZALEZ DELGADILLO",{"v":190159.38,"d":"$190,159.38"},"GASTOS A COMPROBAR "]
[835,"14 DE JUNIO DE 2018","EMILIO GONZALEZ DELGADILLO",{"v":8288.2,"d":"$8,288.20"},"COMPLEMENTO DE NOMINA PRIMER QUINCENA DE JUNIO DE 2018 ( PERSONAL QUE NO CUENTA CON TARJETA DE COBRO)"]
[836,"14 DE JUNIO DE 2018","SERGIO HERRERA ENCISO",{"v":8306.76,"d":"$8,306.76"},"MATERIAL SOLICITADO PARA LAS DIFERENTES CUADRILLAS SAMAPA"]
[837,"14 DE JUNIO DE 2018","JORGE ANDRES MANCILLA CASTILLO",{"v":3828,"d":"$3,828.00"},"2 TONER SAMSUNG G M4072U EXTRA ALTO REND PARA LAS DIFERENTES IMPRESORAS EN OFICINA SAMAPA"]
[838,"14 DE JUNIO DE 2018","RODRIGO ZUÑIGA LOPEZ",{"v":2000,"d":"$2,000.00"},"PAGO DE 15 DIAS TRABAJADOS DEL MES DE JUNIO 2018 COMO FONTANERO EN CUADRILLA SAMAPA"]
[839,"15 DE JUNIO DE 2018","CANCELADO",{"v":30957,"d":"$30,957.00"},"PAGO DE COMBUSTIBLE DEL 07 AL 13 DE JUNIO DEL 2018"]
[840,"15 de junio 2018","JOSE VICENTE ROMERO RUIZ",{"v":30957,"d":"$30,957.00"},"PAGO DE COMBUSTIBLE DE 07 AL 13 DE JUNIO 2018"]
[841,"15 DE JUNIO DE 2018","MARTHA ELIZABETH MUÑOZ GUTIERREZ",{"v":19177.77,"d":"$19,177.77"},"PAGO DE 2 TRAMOS DE TUBO DE 6 X 30\" CORRUGADO PARA EL ALEJAMIENTO DE AGUAS RESIDUALES DEL FRACCIONAMIENTO RINCONADAS LAS LOMAS"]
[842,"15 DE JUNIO DE 2018","JUAN JOSE VAZQUEZ URRUTIA ",{"v":20880,"d":"$20,880.00"},"GASTOS  A COMPROBAR"]
[843,"15 DE JUNIO DE 2018","MARCO ANTONIO RAMIREZ BRAVO",{"v":2784,"d":"$2,784.00"},"SERVICIO DE RETROEXCAVADORA,  PARA LIMPIEZA EN EXCAVACION DE RED DE AGUA EN LA LOCALIDAD DE CEDROS."]
[844,"15 DE JUNIO DE 2018","JOSE ALONSO ANDALON MONTES",{"v":3000,"d":"$3,000.00"},"PRESTAMO PERSONAL A EMPLEADO"]
[845,"15 DE JUNIO DE 2018","EFRAIN ESTRADA MEJIA",{"v":1000,"d":"$1,000.00"},"APOYO A CHOFER DE PIPA DEL ESTADO                                                                   "]
[846,"15 DE JUNIO DE 2018","JORGE ANDRES MANCILLA CASTILLO",{"v":406.32,"d":"$406.32"},"CARTUCHO EPSON NEGRO MODELO 664 664 P L 110 PARA IMPRESORA ASGNADA A OFICINA SAMAPA"]
[847,"15 DE JUNIO DE 2018","JUAN CARLOS GARCIA RUIZ",{"v":1472.16,"d":"$1,472.16"},"REINTEGRO DE NOMINA POR DESCUENTO REALIZADO"]
[848,"21 DE JUNIO DE 2018","JESUS ALEJANDRO FLORES BERNARDO",{"v":3800,"d":"$3,800.00"},"PRESTAMO PERSONAL A EMPLEADO"]
[849,"21 DE JUNIO DE 2018","EMILIO GONZALEZ DELGADILLO",{"v":10000,"d":"$10,000.00"},"GASTOS A COMPROBAR"]
[850,"21 DE JUNIO DE 2018","OPERADORA DE EMPEÑOS Y PRESTAMOS SAPI DE CV SOFOM ENR",{"v":9223.51,"d":"$9,223.51"},"RETENCIONES EFECTUADAS DE PRESTAMOS A EMPLEADOS (MAS X MENOS)"]
[851,"21 DE JUNIO DE 2018","JOSE VICENTE ROMERO RUIZ",{"v":19120,"d":"$19,120.00"},"PAGO DE COMBUSTIBLE DEL 14 AL 20 DE JUNIO DEL 2018"]
[852,"21 DE JUNIO DE 2018","SERGIO HERRERA ENCISO",{"v":3645.88,"d":"$3,645.88"},"MATERIAL SOLICITADO PARA VACTOR Y ALMACEN ( SAMAPA )"]
[853,"26 DE JUNIO DE 2018","CANCELADO",{"v":13108,"d":"$13,108.00"},"REPARACION DE BOMBA DE LODOS DE 5 HP TRIFASICA DEL CARCAMO DE FRACCIONAMINTO VALLE DELOS SABINOS 2"]
[854,"26 DE JUNIO DE 2018","FELICIANO GARCIA PEREZ",{"v":13108,"d":"$13,108.00"},"REPARACION DE BOMBA DE LODOS DE 5 HP TRIFASICA DEL CARCAMO DE FRACCIONAMIENTO VALLE DE LOS SABINOS 2"]
[855,"26 DE JUNIO DE 2018","FELICIANO GARCIA PEREZ",{"v":9180,"d":"$9,180.00"},"REPARACION DE BOMBA DE LODOS DE 2 HP TRIFASICA DEL CARCAMO DE PTAR  DEL FRACCIONAMIENTO VALLE DE LOS SABINOS 1"]
[856,"26 DE JUNIO DE 2018","CFE SUMINISTRADOR DE SERVICIOS BASICOS ",{"v":1068568,"d":"$1,068,568.00"},"PAGO DE ENERGIA ELECTRICA DEL MES DE MAYO DE 2018"]
[857,"26 DE JUNIO DE 2018","JESUS ALEJANDRO FLORES BERNARDO",{"v":3000,"d":"$3,000.00"},"PRESTAMO PERSONAL A EMPLEADO SAMAPA"]
[858,"26 DE JUNIO DE 2018","EMILIO GONZALEZ DELGADILLO",{"v":12305.2,"d":"$12,305.20"},"COMPLEMENTO DE NOMINA SEGUNDA QUINCENA DE JUNIO DE 2018               ( PERSONAL QUE NO CUENTA CON TARJETA)"]
[859,"26 DE JUNIO DE 2018","MARCO ANTONIO RAMIREZ BRAVO",{"v":16240,"d":"$16,240.00"},"SERVICIO DE RETROEXCAVADORA PARA LIMPIEZA DE CAMINO BUENAVISTA-CEDROS"]
[860,"27 DE JUNIO DE 2018","JUAN JOSE VAZQUEZ URRUTIA",{"v":1694.53,"d":"$1,694.53"},"BALATAS,TAMBORES Y KIT DE HERRAJES DE TAMBOR PARA VEHICULO FORD RANER (SAMAPA)"]
[861,"28 DE JUNIO DE 2018","JOSE  RAMIREZ CARRERO",{"v":640,"d":"$640.00"},"PARCHADA DE LLANTAS A PIPA DEL ESTADO"]
[862,"28 DE JUNIO DE 2018","JOANNA MELISA HERRERA  TORRES",{"v":10373.6,"d":"$10,373.60"},"FINIQUITO A PERSONA QUE SE ENCONTRABA EN AREA ADMINISTRATIVA COMO CAJERA"]
[863,"28 DE JUNIO DE 2018","JOSE VICENTE ROMERO RUIZ",{"v":18650,"d":"$18,650.00"},"COMBUSTIBLE DEL 21 AL 27 DE JUNIO DEL 2018"]
[864,"29 DE JUNIO DE 2018","COMERCIALIZADORA INDUSTRIAL DE ZAPOPAN SA DE CV",{"v":9187.2,"d":"$9,187.20"},"1,750 KG DE  HIPOCLORITODE SODIO AL 3% 10 NIPLES CUERDA CORRIDA DE 1/2\" X 4\", 10 NIPLES DE CUERDA CORRIDA DE 1/2\" X 2\" CEDULA 80."]
[865,"29 DE JUNIO DE 2018","COMERCIALIZADORA INDUSTRIAL DE ZAPOPAN SA DE CV",{"v":4176,"d":"$4,176.00"},"3 PICHANCHAS MILTON ROY PARA DOSIFICADOR."]
[866,"29 DE JUNIO DE 2018","JOSE CARLOS GUTIRRES FLORES",{"v":986,"d":"$986.00"},"SERVICIO DE RETRO-EXCAVADORA PARA CALLE PEDRO MORENO EN LA LOCALIDAD DE ATEQUIZA."]
[867,"29 DE JUNIO DE 2018","SERGIO HERRERA ENCISO",{"v":9421.52,"d":"$9,421.52"},"MATERIAL SOLICITADO PARA LAS DIFERENTES CUADRILLAS ASIGNADAS A SAMAPA (PARA REPARACIONES DE CALLES)  "]
[868,"29 DE JUNIO DE 2018","ISMAEL MORA CERVANTES ",{"v":4000,"d":"$4,000.00"}," 2 QUINCENAS ( 30/06/2018) PARA OPERADORES DE PTAR QUE SE ENCUENTRA EN FRACCIONAMIENTO VALLE DE LOS SABINOS I"]
[869,"29 DE JUNIO DE 2018","EMILIO GONZALEZ CASTAÑEDA",{"v":16666,"d":"$16,666.00"},"PAGO A PERSONAS  DE LABORES DE  REQUERIMIENTO"]
[870,"02 DE JULIO DE 2018","CFE SUMINISTRADOR DE SERVICIOS BASICOS ",{"v":20000,"d":"$20,000.00"},"COMPLEMENTO DEL MES DE MAYO 2018"]
[871,"02 DE JULIO DE 2018","ARTEMIA LOPEZ MONTER",{"v":8008.04,"d":"$8,008.04"},"PAGO DE RENTA DEL MES DE JULIO 2018 (SAMAPA)"]
[872,"03 DE JULIO DE 2018","MA LUISA PEREZ CONTRERAS",{"v":2000,"d":"$2,000.00"},"RENTA DEL MES DE JUNIO Y JULIO 2018 DEL LOCAL QUE UTILIZA LA OFICINA DE SAMAPA EN LA LOCALIDAD DE LA CAPILLA"]
[873,"03 DE JULIO DE 2018","EFRAIN ESTRADA MEJIA",{"v":1000,"d":"$1,000.00"},"APOYO A CHOFER DE PIPA DEL ESTADO"]
[874,"03 DE JULIO DE 2018","FERNANDO ARGENIZ RMIREZ RIZO",{"v":4000,"d":"$4,000.00"},"PAGO DE 2 QUINCENAS TRABAJADAS EN PTAR EN FRACC.  SABINOS I CORRESPONDIENTES AL MES DE JUNIO 2018 ( 15 Y 30 )"]
[875,"05 DE JULIO DE 2018","RITA ZUÑIGA LOPEZ",{"v":2500,"d":"$2,500.00"},"PRESTAMO PERSONAL A EMPLEADO (SAMAPA)"]
[876,"05 DE JULIO DE 2018","JOSE RENE CASTAÑEDA RAMIREZ",{"v":290,"d":"$290.00"},"HECHURA DE LLAVE DE ALTA SEGURIDAD,  CHAPA Y LLAVE PARA CAJONERA DE ESCRITORIO EN OFICINAS SAMAPA"]
[877,"05 DE JULIO DE 2018","JOSE VICENTE ROMERO RUIZ",{"v":17050,"d":"$17,050.00"},"COMBUSTIBLE DEL 28 DE JUNIO AL 04 DE JULIO DEL 2018"]
[878,"05 DE JULIO DE 2018","ANA MARIA FLORES SERRANO ",{"v":1586,"d":"$1,586.00"},"BASE DE MEDIDOR CON ACCESORIOS DE 7X200, PARA POZO DE LA TINAJA"]
[879,"05 DE JULIO DE 2018","FRANCISCO JAVIER HERRERA ENCISO",{"v":2105.4,"d":"$2,105.40"},"ACEITES PARA LAS DIFERENTES PIPAS Y VACTOR ASIGNADOS AL AREA DE SAMAPA"]
[880,"05 DE JULIO DE 2018","GONZALO BEJARANO LECHUGA",{"v":754,"d":"$754.00"},"IMPRESIÓN DE MIL VALES DE GASOLINA (SAMAPA)"]
[881,"06 DE JULIO DE 2018","EZEQUIEL ROMERO CERVANTES",{"v":9280,"d":"$9,280.00"},"GASTOS A COMPROBAR"]
[882,"06 DE JULIO DE 2018","SERGIO HERRERA ENCISO",{"v":2894.2,"d":"$2,894.20"},"MATERIAL SOLICITADO PARA LAS DIFERENTES CUADRILLAS (SAMAPA)"]
[883,"06 DE JULIO DE 2018","MARCO ANTONIO RAMIREZ BRAVO",{"v":2784,"d":"$2,784.00"},"6 HORAS DE RETROEXCAVADORA, PARA DRENAJE EN LA LOCALIDAD DE LOS CEDROS"]
[884,"09 DE JULIO DE 2018","RODRIGO MARTINEZ VILLANUEVA",{"v":3000,"d":"$3,000.00"},"PRESTAMO PERSONAL A EMPLEADO (SAMAPA)"]
[885,"13 DE JULIO DE 2018","OZUNA GARCIDUEÑAS JESUS ARMANDO",{"v":25520,"d":"$25,520.00"},"1 USUARIO PARA CONTABILIDAD (SAMAPA)"]
[886,"13 DE JULIO DE 2018","JOSE VICENTE ROMERO RUIZ",{"v":19470,"d":"$19,470.00"},"COMBUSTIBLE DEL 005 AL 10 DE JULIO DE 2018"]
[887,"13 DE JULIO DE 2018","EMILIO GONZALEZ DELGADILLO",{"v":12021.2,"d":"$12,021.20"},"COMPLEMENTO DE PRIMER QUINCENA DE JULIO 2018 ( PERSONAL QUE AUN NO CUENTA CON TARJETA DE COBRO)"]
[888,"13 DE JULIO DE 2018","EMILIO GONZALEZ DELGADILLO",{"v":14532,"d":"$14,532.00"},"PAGO APERSONAS DE LABORES DE REQUERIMIENTO"]
[889,"13 DE JULIO DE 2018","EMILIO GONZALEZ DELGADILLO",{"v":3000,"d":"$3,000.00"},"PRESTAMO PERSONAL A EMPLEADO (SAMAPA)"]
[890,"13 DE JULIO DE 2018","MAURO GOMEZ CORDOVA",{"v":522,"d":"$522.00"},"NEUMATICO Y CAMARA PARA MOTOCICLETA ASIGNADA A SAMAPA"]
[891,"13 DE JULIO DE 2018","JESUS ALEJANDRO FLORES BERNARDO",{"v":1339,"d":"$1,339.00"},"GASTOS A COMPROBAR ( PAGO DE TELEFONIA POR CABLE)"]
[892,"13 DE JULIO DE 2018","JESUS ALEJANDRO FLORES BERNARDO",{"v":3368.83,"d":"$3,368.83"},"GASTOS A COMPROBAR"]
[893,"13 DE JULIO DE 2018","JOSE REGALADO MELENDREZ",{"v":430,"d":"$430.00"},"GASTOS A COMPROBAR (LLANTA Y CAMARA PARA MOTO QUE SE UTILIZA EN LA LOCALIDAD DE ATEQUIZA) ASIGNADA A SAMAPA"]
[894,"13 DE JULIO DE 2018","SAYDE ITZEL CORDOVA RAMIREZ",{"v":3000,"d":"$3,000.00"},"PRESTAMO PERSONAL A EMPLEADO ( SAMAPA)"]
[895,"13 DE JULIO DE 2018","JESUS ALEJANDRO FLORES BERNARDO",{"v":500,"d":"$500.00"},"GASTOS A COMPROBAR ( PARCHADA DE LLANTA Y CAMARA PARA EL CAMION TIPO VACTOR) ASIGNADO AL AREA DE SAMAPA"]
[896,"16 DE JULIO DE 2018","ISMAEL MORA CERVANTES",{"v":2000,"d":"$2,000.00"},"15 DIAS LABORADOS COMO VELADOR EN PLANTA DE TRATAMIENTO DE SABINOS 1 ( DEL 01 AL 15 DE JULIO DE 2018)"]
[897,"16 DE JULIO DE 2018","EFRAIN ESTRADA MEJIA",{"v":1000,"d":"$1,000.00"},"APOYO A CHOFER DE  PIPA DEL ESTADO"]
[898,"16 DE JULIO DE 2018","LUIS ANTONIO BERRIOS BRAVO",{"v":2000,"d":"$2,000.00"},"15 DIAS LABORADOS EN PLANTA DE TRATAMIENTO DE SABINOS DEL 01 AL 15 DE JULIO DE 20108"]
[899,"19 DE JULIO DE 2018","CANCELADO",{"v":49880,"d":"$49,880.00"},"CANCELADO"]
[900,"19 DE JULIO DE 2018","EMILIO GONZALEZ DELGADILLO",{"v":53360,"d":"$53,360.00"},"GASTOS A COMPROBAR"]
[901,"19 DE JULIO DE 2018","DORA IRMA CERVANTES RODRIGUEZ",{"v":12495.16,"d":"$12,495.16"},"MATERIAL SOLICITADO PARA ALAMACEN Y LAS DIFERENTES CUADRILLAS SAMAPA"]
[902,"19 DE JULIO DE 2018","DORA IRMA CERVANTES RODRIGUEZ",{"v":16161.3,"d":"$16,161.30"},"MATERIAL SOLICITADO PARA ALAMACEN Y LAS DIFERENTES CUADRILLAS SAMAPA"]
[903,"19 DE JULIO DE 2018","DORA IRMA CERVANTES RODRIGUEZ",{"v":19078.66,"d":"$19,078.66"},"MATERIAL SOLICITADO PARA ALAMACEN Y LAS DIFERENTES CUADRILLAS SAMAPA"]
[904,"19 DE JULIO DE 2018","JOSE VICENTE ROMERO RUIZ",{"v":17900,"d":"$17,900.00"},"PAGO DE COMBUSTIBLE DEL 12 AL 18 DEJULIO DEL 2018"]
[905,"19 DE JULIO DE 2018","RAMON COVARRUBIAS MARTINEZ",{"v":1368.8,"d":"$1,368.80"},"ESCANEO, CAMBIO DE BOBINA Y BUJIAS PARA VEHICULO ASIGNADO AL AREA DE SAMAPA"]
[906,"19 DE JULIO DE 2018","MARCO ANTONIO RAMIREZ BRAVO",{"v":3712,"d":"$3,712.00"},"SERVICIO DE RETROEXCAVADORA PARA LIMPIEZA DE CALLE EN LA LOCALIDAD DE BUENAVISTA"]
[907,"23 DE JULIO DE 2018","ARMANDO LOPEZ ROMERO",{"v":2000,"d":"$2,000.00"},"4 PIPAS DE AGUA PARA REPARTIR EN LA LOCALIDAD DE LAS AGUILILLAS, YA QUE NO COTABAN CON SUMINISTRO DE AGUA POR FALLA DEL POZO"]
[908,"24 DE JULIO DE 2018","NAYELI GRICEL MUÑOZ MELENDEZ","CANCELADO","200 LITROS DE DISPERSOR DE ARCILLAS"]
[909,"24 DE JULIO 2018","NAYELI GRICEL MUÑOZ MELENDEZ",{"v":10440,"d":"$10,440.00"},"200 LITROS DE DISPERSOR DE ARCILLAS"]
[910,"24 DE JULIO DE 2018","ENRIQUE  GONZALEZ VILLALOBOS",{"v":3000,"d":"$3,000.00"},"PRESTAMO PERSONAL A EMPLEADO SAMAPA"]
[911,"24 DE JULIO DE 2018","JOSE OCTAVIO ENCISO MARTINEZ",{"v":2020,"d":"$2,020.00"},"61 MTS DE EMPEDRADO EN LA CALLE JAVIER MINA EN LA LOCALIDAD DE LOMAS DE ATEQUIZA"]
[912,"24 DE JULIO DE 2018","JORGE ANDRES MANCILLA CASTILLO",{"v":4644.64,"d":"$4,644.64"},"2 TONER SAMSUNG G M4072U EXTRA ALTO REND. 4 TINTAS PARA EPSON PL"]
[913,"25 DE JULIO DE 2018","CESAR SANTIAGO FLORES ENCISO",{"v":1000,"d":"$1,000.00"},"APOYO A CHOFER DE PIPA, POR REPARTIR AGUA 5 DIAS EN LA LOCALIDAD DE LAS AGUILILLAS"]
[914,"26 DE JULIO DE 2018","JOSE DE JESUS LOPEZ RIZO",{"v":3640.2,"d":"$3,640.20"},"FINIQUITO A PERSONA QUE SE ENCONTRABA EN AREA TECNICA COMO OPERADOR DE POZO EN PTAR"]
[915,"26 DE JULIO DE 2018","MARCO ANTONIO PAREDES CERVANTES",{"v":3640.2,"d":"$3,640.20"},"FINIQUITO A PERSONA QUE SE ENCONTRABA EN AREA TECNICA COMO OPERADOR DE POZO EN PTAR"]
[916,"26 DE JULIO DE 2018","JESUS ALEJANDRO FLORES BERNARDO",{"v":10000,"d":"$10,000.00"},"GASTOS A COMPROBAR"]
[917,"26 DE JULIO DE 2018","JOSE VICENTE ROMERO RUIZ",{"v":24550,"d":"$24,550.00"},"COMBUSTIBLE  DEL 19 AL 26 DE JULIO DE 2018"]
[918,"27 DE JULIO DE 2018","EMILIO GONZALEZ DELGADILLO",{"v":13801.8,"d":"$13,801.80"},"COMPLEMENTO DE  SEGUNDA QUINCENA DE JULIO 2018 ( PERSONAL QUE NO CUENTA CON TARJETA DE COBRO)"]
[919,"27 DE JULIO DE 2018","EMILIO GONZALEZ DELGADILLO",{"v":14051.2,"d":"$14,051.20"},"PAGO DE SENGUNDA QUINCENA DEL MES DE JULIO 2018 (PERSONAL EVENTUAL)"]
[920,"27 DE JULIO DE 2018","EMILIO GONZALEZ DELGADILLO",{"v":16000,"d":"$16,000.00"},"PAGO APERSONAS DE LABORES DE EREQUERIMIENTOS DEL 16 AL 30 DE JULIO 2018"]
[921,"27 DE JULIO DE 2018","FELICIANO GARCIA PEREZ",{"v":4800,"d":"$4,800.00"},"COMPRA DE MOTOBOMBA DE 1 HP DE 2\" DE SALIDA DE 115 VOLTS, MODELO ROBUSTA MYERS PARA USO DE SERVICIOS GENERALES"]
[922,"27 DE JULIO DE 2018","FELICIANO GARCIA PEREZ",{"v":13500,"d":"$13,500.00"},"REPARACION DE BOMBA DE LODOS DE CARCAMO DE LA PTAR DE VALLE DE LOS SABINOS 1"]
[923,"27 DE JULIO DE 2018","FELIPE HERRERA ENCISO",{"v":5548.28,"d":"$5,548.28"},"MATERIAL SOLICITADO PARA LAS DIFERENTES CUADRILLAS SAMAPA"]
[924,"27 DE JULIO DE 2018","EMILIO GONZALEZ DELGADILLO",{"v":1500,"d":"$1,500.00"},"COMPLEMENTO DE NOMINA EVENTUAL SEGUNDA QUINCENA DE JULIO 2018 "]
[925,"30 DE JULIO DE 2018","EFRAIN ESTRDA MEJIA",{"v":1000,"d":"$1,000.00"},"APOYO A CHOFER DE PIPA DEL ESTADO"]
[926,"30 DE JULIO DE 2018","JUAN RAMON REAL VALTIERRA",{"v":2000,"d":"$2,000.00"},"PAGO A VELADOR QUE SE ENCUENTRA EN PLANTA DE TRATAMIENTO DE SABINOS I ( DEL 16 AL 30 DE JULIO DE 2018)"]
[927,"02 DE JULIO DE 2018","CANCELADO",{"v":2000,"d":"$2,000.00"},"PRESTAMO PERSONAL A EMPLEADO ( SAMAPA)"]
[928,"02 DE AGOSTO DE 2018","JOSE VICENTE ROMERO RUIZ",{"v":22000,"d":"$22,000.00"},"COMBUSTIBLE DEL 26 DE JULIO AL 01 DE AGOSTO 2018"]
[929,"02 DE AGOSTO DE 2018","ARTEMIA LOPEZ MONTER",{"v":8008.04,"d":"$8,008.04"},"PAGO DE RENTA DEL MES DE AGOSTO 2018 (SAMAPA IXTLAHUACAN)"]
[930,"02 DE AGOSTO DE 2018","FRANCISCO JAVIER HERRERA ENCISO",{"v":1640.24,"d":"$1,640.24"},"MATERIAL SOLICITADO PARA LAS DIFERENTES PIPAS ASIGNADAS A SAMAPA"]
[931,"09 DE AGOSTO DE 2018","JOSE VICENTE ROMERO RUIZ",{"v":17920,"d":"$17,920.00"},"COMBUSTIBLE DEL 02 AL 08 DE AGOSTO DE 2018"]
[932,"14 DE AGOSTO DE 2018","EMILIO GONZALEZ DELGADILLO",{"v":13802,"d":"$13,802.00"},"COMPLEMENTO DE PRIMER QUINCENA DE AGOSTO 2018 ( PERSONAL QUE NO CUENTA CON TARJETA DE COBRO)"]
[933,"14 DE AGOSTO DE 2018","EMILIO GONZALEZ DELGADILLO",{"v":15500,"d":"$15,500.00"},"PRIMER QUINCENA DE AGOSTO 2018 ( PERSONAL EVENTUAL)"]
[934,"17 DE AGOSTO DE 2018","CANCELADO",{"v":1000160,"d":"$1,000,160.00"},"PAGO DE ENERGIA ELECTRICA DEL MES DE JULIO 2018"]
[935,"17 DE AGOSTO DE 2018","CANCELADO",{"v":1160000,"d":"$1,160,000.00"},"PAGO DE ENERGIA ELECTRICA DEL MES DE JULIO 2018"]
[936,"21 DE AGOSTO DE 2018","CLAUDIA DEL CARMEN SANCHEZ GARCIA",{"v":1500,"d":"$1,500.00"},"PAGO A PERSONA DE LABORES DE REQUERIMINTO"]
[937,"22 DE AGOSTO DE 2018","CFE SUMINISTRADOR DE SERVICIOS BASICOS ",{"v":1160000,"d":"$1,160,000.00"},"PAGO DE ENERGIA ELECTRICA DEL MES DE JULIO 2018"]
[938,"23 DE AGOSTO DE 2018","EMILIO GONZALEZ DELGADILLO",{"v":1769.06,"d":"$1,769.06"},"GASTOS A COMPROBAR ( TELEFONIA POR CABLE)"]
[939,"23 DE AGOSTO DE 2018","JESUS ALEJANDRO FLORES BERNARDO",{"v":2216.76,"d":"$2,216.76"},"GASTOS A COMPROBAR ( MUELLES PARA PIPA DEL ESTADO) ASIGNADA A SAMAPA"]
[940,"23 DE AGOSTO DE 2018","EMILIO GONZALEZ DELGADILLO",{"v":13999.67,"d":"$13,999.67"},"GASTOS A COMPROBAR ( LLANTAS PARA FORD- 250) ASIGNADA A SAMAPA"]
[941,"23 DE AGOSTO DE 2018","ERIKA SUGEY IBARRA TOVAR",{"v":2000,"d":"$2,000.00"},"PAGO A PERSONA DE LABORES DE LIMPIEZA"]
[942,"23 DE AGOSTO DE 2018","EMILIO GONZALEZ DELGADILLO",{"v":3000,"d":"$3,000.00"},"PRESTAMO PERSONAL A EMPLEADO"]
[943,"23 DE AGOSTO DE 2018","JOSE RAMON MENDEZ GUTIERREZ",{"v":2000,"d":"$2,000.00"},"PRESTAMO PERSONAL A EMPLEADO"]
[944,"23 DE AGOSTO DE 2018","EMILIO GONZALEZ DELGADILLO",{"v":1800.01,"d":"$1,800.01"},"GASTOS A COMPROBAR ( CRISTALES PARA VEHICULO FORD RANGER ASIGNADA A SAMAPA)"]
[945,"23 DE AGOSTO DE 2018","EMILIO GONZALEZ DELGADILLO",{"v":6000,"d":"$6,000.00"},"PAGO A PERSONAS DE LABORES DE REQUERIMIENTO ( PRIMER QUINCENA DE AGOSTO 2018)"]
[946,"23 DE AGOSTO DE 2018","JOSE VICENTE ROMERO RUIZ",{"v":20750,"d":"$20,750.00"},"PAGO DE COMBUSTIBLE DEL 16 AL 21 DEAGOSTO 2018"]
[947,"23 DE AGOSTO DE 2018","FELIPE HERRERA ENCISO",{"v":7314.96,"d":"$7,314.96"},"MATERIAL SOLICITADO PARA LAS DIFERENTES  CUADRILLAS Y ALMACEN"]
[948,"24 DE AGOSTO DE 2018","IGNACIO VAZQUEZ VEGA",{"v":2384.96,"d":"$2,384.96"},"REPARACION Y BRIO A MUELLES DE PIPA ASIGNADA A SAMAPA"]
[949,"24 DE AGOSTO DE 2018","JORGE ANDRES MANCILLA CASTILLO",{"v":890.18,"d":"$890.18"},"TAMBORES PARA IMPRESORA DE OFICINA SAMAPA"]
[950,"24 DE AGOSTO DE 2018","BLACKSTONE TIRES, S.A. DE C.V.",{"v":2590,"d":"$2,590.00"},"LLANTAS PARA VEHICULO ASIGNADO A SAMAPA ( LA CAPILLA)"]
[951,"28 DE AGOSTO DE 2018","FELICIANO GARCIA PEREZ",{"v":4000,"d":"$4,000.00"},"SERVICIO DE REVICION DE EQUIPO ELECTRICO DE REBOMBEO DE LOMAS DE LA CAPILLA Y RINCONADA LAS LOMAS"]
[952,"28 DE AGOSTO DE 2018","FELICIANO GARCIA PEREZ",{"v":13500,"d":"$13,500.00"},"REPARACION DE 2 BOMBAS DE LODOS DEL CARCAMO DE LA PTAR DE HUERTA VIEJA."]
[953,"28 DE AGOSTO DE 2018","FELICIANO GARCIA PEREZ",{"v":3248,"d":"$3,248.00"},"REPARACION DE  BOMBA DE LODOS DEL CARCAMO DE VALLE DE LOS SAVINOS II."]
[954,"28 DE AGOSTO DE 2018","JESUS ALEJANDRO FLORES BERNARDO",{"v":1215.85,"d":"$1,215.85"},"GASTOS A COMPROBAR ( 5 MTS DE VIGA DE 4\" PARA ANCLAJE DELPOZO DE LA CAPILLA)"]
[955,"28 DE AGOSTO DE 2018","COMERCIALIZADORA INDUSTRIAL DE ZAPOPAN SA DE CV",{"v":13920,"d":"$13,920.00"},"2500 KGM DE HIPOCLORITO DE SODIO AL 13% PARA LAS DIFERENTES FUENTES DE ABASTECIMIENTO DE AGUA POTABLE DEL MUNICIPIO."]
[956,"28 DE AGOSTO DE 2018","JUAN JOSE VAZQUEZ URRUTIA ",{"v":1995.2,"d":"$1,995.20"},"GASTOS A COMPROBAR ( CAMARA Y CORBATA PARA PIPA DEL ESTADO)"]
[957,"28 DE AGOSTO DE 2018","VICTOR ADRAIN MARTINEZ MARTINEZ",{"v":1972,"d":"$1,972.00"},"SERVICIO DE AFINACION DE MOTOR PARA VEHICULO ASIGNADO A SAMAPA ( CHEVY LUV BLANCA)"]
[958,"28 DE AGOSTO DE 2018","SAYDE ITZEL CORDOVA RAMIREZ",{"v":3000,"d":"$3,000.00"},"FINIQUITO A PERSONA QUE SE ENCONTRABA COMO CAJERA EN AREA ADMINISTRATIVA"]
[959,"28 DE AGOSTO DE 2018","EMILIO GONZALEZ DELGADILLO",{"v":1329.9,"d":"$1,329.90"},"GASTOS A COMPROBAR (BATERIA DURALAST PARA VEHICULO ASIGNADO A SAMAPA, MAZDA)"]
[960,"29 DE AGOSTO DE 2018","EMILIO GONZALEZ DELGADILLO",{"v":16988,"d":"$16,988.00"},"COMPLEMENTO DE SEGUNDA QUINCENA DE AGOSTO 2018 ( PERSONAL QUE NO CUENTA CON TARJETA)"]
[961,"30 DE AGOSTO DE 2018","EMILIO GONZALEZ DELGADILLO",{"v":19065.9,"d":"$19,065.90"},"SEGUNDA QUINCENA DE AGOSTO 2018 ( PERSONAL EVENTUAL)"]
[962,"31 DE AGOSTO DE 2018","CANCELADO",{"v":1000,"d":"$1,000.00"},"PAGO A PERSONA DE LABORES DE FONTANERIA, EN AREA OPERATIVA ( SAMAPA)"]
[963,"31 DE AGOSTO DE 2018","RICARDO HERRERA CERVANTES",{"v":1000,"d":"$1,000.00"},"PAGO A PERSONA DE LABORES DE FONTANERIA, EN AREA OPERATIVA ( SAMAPA)"]
[964,"31 DE AGOSTO DE 2018","RIVERA TORRES JESSICA MONTSERRAT",{"v":102737.72,"d":"$102,737.72"},"REPOSICION DE EQUIPO DE BOMBEO DE 40 HP A 20 HP, PARA POZO DE  LA LOCALIDAD DE LOS CEDROS"]
[965,"04 DE SEPTIEMBRE DE 2018","ARTEMIA LOPEZ MONTER",{"v":8008.04,"d":"$8,008.04"},"PAGO DE RENTA DEL MES DE SEPTIEMBRE DE 2018 (SAMAPA)"]
[966,"04 DE SEPTIEMBRE DE 2018","RIVERA TORRES JESSICA MONTSERRAT",{"v":68904,"d":"$68,904.00"},"VIDEO LIMPIEZA Y EQUIPO DE BOMBEO NUEVO, EN POZO I DE LA LOCALIDAD DE AGUILILLAS "]
[967,"05 DE SEPTIEMBRE DE 2018","CLAUDIA DEL CARMEN SANCHEZ GARCIA",{"v":3000,"d":"$3,000.00"},"PAGO A PERSONA DE LABORES DE REQUERIMIENTO ( CORRESPONDIENTES A LAS 2 QUINCENAS DE AGOSTO 2018)"]
[968,"05 DE SEPTIEMBRE DE 2018","VICTOR ENCISO RAMIREZ",{"v":1000,"d":"$1,000.00"},"PAGO A PERSONA DE LABORES DE FONTANERIA (8 DIAS)"]
[969,"05 DE SEPTIEMBRE DE 2018","MARIA ISABEL MENDEZ GUTIERREZ",{"v":2000,"d":"$2,000.00"},"PAGO A PERSONA DE LABORES DE REQUERIMIENTO ( SEGUNDA QUINCENA DE AGOSTO 2018)"]
[970,"06 DE SEPTIEMBRE DE 2018","LUIS FERNANDO CUEVAS BARAJAS",{"v":4640,"d":"$4,640.00"},"REPARACION DE MALLA PERIMETRAL DE POZO DE FRACCIONAMIENTO  HUERTA VIEJA"]
[971,"06 DE SEPTIEMBRE DE 2018","LOS RASTROJEROS DE LOS COVARRUBIAS SPR DE RL",{"v":1500,"d":"$1,500.00"},"2 CAJAS DE FAENA PARA LIMPIEZA DE POZOS DE LAS DIFERENTES LOCALIDADES"]
[972,"07 DE SEPTIEMBRE DE 2018","CANCELADO",{"v":200000,"d":"$200,000.00"},"PAGO A CFE"]
[973,"07 DE SEPTIEMBRE DE 2018","CFE SUMINISTRADOR DE SERVICIOS BASICOS ",{"v":200000,"d":"$200,000.00"},"PAGO A CFE POR CAUSAL 21"]
[974,"07 DE SEPTIEMBRE DE 2018","JESUS ALEJANDRO FLORES BERNARDO",{"v":3000,"d":"$3,000.00"},"VIATICOS PARA CAPACITACION DEL SISTEMA COMERCIAL, IMPARTIDOS EN IMTA CUERNAVACA ( ESC. DEL AGUA SEAS)"]
[975,"10 DE SEPTIEMBRE DE 2018","JOSE ROGELIO MACIAS VILLANUEVA",{"v":800,"d":"$800.00"},"DEBOLUCION DE PAGO QUE NO PROCEDE (LOS LAURELES)"]
[976,"11 DE SEPTIEMBRE DE 2018","JUAN JOSE VAZQUEZ URRUTIA",{"v":4000,"d":"$4,000.00"},"GASTOS A COMPROVAR "]
[977,"11 DE  SEPTIEMBRE DE 2018","EMILIO GONZALEZ DELGADILLO",{"v":1898,"d":"$1,898.00"},"GASTOS A COMPROVAR ( PAGO DE TELEFONIA POR CABLE)"]
[978,"11 DE SEPTIEMBRE DE 2018","JOSE VICENTE ROMERO RUIZ",{"v":22050,"d":"$22,050.00"},"COMBUSTIBLE DEL 30 DE AGOSTO AL 04 DE SEPTIEMBRE 2018"]
[979,"14 DE SEPTIEMBRE DE 2018","EMILIO GONZALEZ DELGADILLO",{"v":16640.4,"d":"$16,640.40"},"COMPLEMENTO DE NOMINA CORRESPONDIENTE A PRIMER QUINCENA DE SEPTIEMBRE DE 2018 ( PERSONAL QUE NO CUENTA CON TARJETA DE COBRO)"]
[980,"14 DE SEPTIEMBRE DE 2018","EFRAIN ESTRADA MEJIA",{"v":1000,"d":"$1,000.00"},"APOYO A CHOFER DE PIPA DEL ESTADO"]
[981,"17 DE SEPTIEMBRE DE 2018","TECNOELECTRICA NACIONAL SA DE CV",{"v":15381.6,"d":"$15,381.60"},"CAMBIO DE SISTEMA DE TRANSFORMADOR  DE 45 KVA POR 220 VOLTIOS A 45 KVA  A  440 VOLTIOS, PARA POZO 2 CEDROS"]
[982,"17 DE SEPTIEMBRE DE 2018","FRANCISCO JAVIER HERRERA ENCISO",{"v":8623.44,"d":"$8,623.44"},"MATERIAL SOLICITADO PARA LAS DIFERENTES PIPAS Y VEHICULOS SAMAPA"]
[983,"17 DE SEPTIEMBRE DE 2018","ENRIQUE GONZALEZ VILLALOBOS",{"v":2800,"d":"$2,800.00"},"FINIQUITO A PERSONA QUE SE ENCONTRABA EN AREA TECNICA COMO OPERADOR DE PLANTA DE TRATAMIENTO"]
[984,"17 DE SEPTIEMBRE DE 2018","RODRIGO JAVIER COVARRUBIAS PLASCENCIA ",{"v":4000,"d":"$4,000.00"},"PAGO DE 2 QUINCENAS, 1 CORRESPNDIENTE A LA SEGUNDA DE AGOSTO Y 1 A PRIMERA DE SEPTIEMBRE 2018 A OPERADOR DE PLANTA DE TRATAMIENTO SABINIOS I"]
[985,"18 DE SEPTIEMBRE DE 2018","JESUS ALEJANDRO FLORES BERNARDO",{"v":5000,"d":"$5,000.00"},"GASTOS A COMPROBAR"]
[986,"18 DE SEPTIEMBRE DE 2018","JOSE AGUSTIN JIMENEZ GUERRERO",{"v":23200,"d":"$23,200.00"},"REPARACION GENERAL DE BOMBA SUMERGIBLE DE LODOS DE 12.5 HP MARCA RSA PARA PTAR DE FRACCIONAMIENTO SABINOS I"]
[987,"21 DE SEPTIEMBRE DE 2018","CLAUDIA DEL CARMEN SANCHEZ GARCIA",{"v":1500,"d":"$1,500.00"},"PAGO A PERSONA DE LABORES DE REQUERIMIENTO"]
[988,"21 DE SEPTIEMBRE DE 2018","EMILIO GONZALEZ DELGADILLO",{"v":3550.88,"d":"$3,550.88"},"GASTOS A COMPROBAR ( PAPELERIA SAMAPA)"]
[989,"21 DE SEPTIEMBRE DE 2018","MARTHA ELIZABETH MUÑOZ GUTIERREZ",{"v":16407.31,"d":"$16,407.31"},"MATERIAL SOLICITADO PARA REPARACIONES DIVERSAS EN LAS DIFERENTES LOCALIDADES DE ESTA CABECERA MUNICIPAL"]
[990,"24 DE SEPTIEMBRE DE 2018","FELICIANO GARCIA PEREZ",{"v":13500,"d":"$13,500.00"},"REPARACION GENERAL DE BOMBA DE LODOS MARCA GOULDS MOD 4S203404 DE 2HP DE PLANTA DE TRATAMIENTO DE FRACC. HUERTA VIEJA"]
[991,"24 DE SEPTIEMBRE DE 2018","SERGIO HERRERA ENCISO",{"v":10535.12,"d":"$10,535.12"},"MATERIAL SOLICITADO PARA REPARACION DE FUGAS EN LAS DIFERENTES LOCALIDADES DE ESTA CABECERA MUNICIPAL"]
[992,"24 DE SEPTIEMBRE DE 2018","IRENE CERVANTES MANDUJANO",{"v":13650,"d":"$13,650.00"},"2500 KG DE HIPOCLORITO DE SODIO AL 13 % PARA LAS DIFERENTES FUENTES DE ABASTECIMIENTO DE AGUA POTABLE DEL MUNICIPIO"]
[993,"24 DE SEPTIEMBRE DE 2018","JOSE CARLOS GUTIERRES FLORES",{"v":18537.96,"d":"$18,537.96"},"MATERIAL SOLICITADO PARACAMBIO DE 30 MTS DE TUBERIA EN LA CALLE  JAVIER MINA EN LA LOCALIDAD DE A TEQUIZA"]
[994,"24 DE SEPTIEMBRE DE 2018","TUBERIAS Y CONEXIONES DEL LAGO SA DE CV",{"v":21137.06,"d":"$21,137.06"},"MATERIAL SOLICITADO PARA ALMACEN Y LAS DIFERENTES CUADRILLAS SAMAPA"]
[995,"24 DE SEPTIEMBRE DE 2018","MARTHA ELIZABETH MUÑOZ GUTIERREZ",{"v":986.88,"d":"$986.88"},"MATERIAL SOLICITADO PARA ALMACEN Y LAS DIFERENTES CUADRILLAS SAMAPA"]
[996,"24 DE SEPTIEMBRE DE 2018","LAMAS INFANTE GUILLERMO",{"v":16240,"d":"$16,240.00"},"REPARACION DE MOTOR DE REBOMBEO DE 20 HP COORESPONDIENTE A POZO DE RINCONADA LAS LOMAS "]
[997,"25 DE SEPTIEMBRE DE 2018","ANTONIO ALBERTO FUENTES PEÑA",{"v":5800,"d":"$5,800.00"},"LLANTA CAMARA Y CORBATA PARA EL CAMION TIPO VACTOR ASIGNADO A SAMAPA"]
[998,"26 DE SEPTIEMBRE DE 2018","CFE DISTRIBUCION EMPRESA PRODUCTIVA SUBSIDIARIA MEDIA TENSION CON TRANSFORMADORES DE CORRIENTE",{"v":8475.32,"d":"$8,475.32"},"MEDIDOR PARA POZO DE LA CAPILLA"]
[999,"26 DE SEPTIEMBRE DE 2018","HECTOR JOSE PEREZ COMPARAN ",{"v":4134.4,"d":"$4,134.40"},"FINIQUITO A PERSONA QUE SE ENCONTRABA EN AREA TECNICA COMO OPERADOR DE POZO"]
[1000,"26 DE SEPTIEMBRE DE 2018","CANCELADO",{"v":7082.01,"d":"$7,082.01"},"MATERIAL SOLICITADO PARA POZO # 2 DE LA LOCALIDAD DE LA CAPILLA"]
[1001,"26 DE SEPTIEMBRE DE 2018","SERGIO HERRERA ENCISO",{"v":3607.6,"d":"$3,607.60"},"MATERIAL SOLICITADO PARA REPARACION DE FUGAS DE LAS DIFERENTES LOCALIDADES DE ESTA CABECERA MUNICIPAL"]
[1002,"27 DE SEPTIEMBRE DE 2018","CANCELADO",{"v":885452,"d":"$885,452.00"},"PAGO DE ENERGIA ELECTRICA DEL MES DE AGOSTO 2018"]
[1003,"27 DE SEPTIEMBRE DE 2018","JOSE RAMIREZ CARRERO",{"v":500,"d":"$500.00"},"SERVICIO DE PARCHADURA DE LLANTAS DE PIPA DEL ESTADO"]
[1004,"27 DE SEPTIEMBRE DE 2018","CFE SUMINISTRADOR DE SERVICIOS BASICOS ",{"v":885951,"d":"$885,951.00"},"PAGO DE ENERGIA ELECTRICA DEL MES DE AGOSTO 2018"]
[1005,"28 DE SEPTIEMBRE DE 2018","MARCO ANTONIO RAMIREZ BRAVO",{"v":9744,"d":"$9,744.00"},"SERVICIO DE RETROEXCAVADORA PARA RED DE AGUA EN LA LOCALIDAD DE LA CAPILLA Y RED DE DRENAJE EN FRACCIONAMIENTO DE RINCONADAS LAS LOMAS"]
[1006,"28 DE SEPTIEMBRE DE 2018","EMILIO GONZALEZ DELGADILLO",{"v":29266.4,"d":"$29,266.40"},"PAGO DE SEGUNDA QUINCENA DE SEPTIEMBRE 2018 ( PERSONAL EVENTUAL)"]
[1007,"28 DE SEPTIEMBRE DE 2018","EMILIO GONZALEZ DELGADILLO",{"v":3801.6,"d":"$3,801.60"},"COMPLEMENTO DE NOMINA CORRESPONDIENTE A SEGUNDA QUINCENA DE SEPTIEMBRE 2018 ( PERSONAL QUE NO CUENTA CON TARJETA DE COBRO)"]
[1008,"28 DE SEPTIEMBRE DE 2018","EMILIO GONZALEZ DELGADILLO",{"v":2770.01,"d":"$2,770.01"},"GASTOS A COMPROBAR (LLANTAS BLACKSTONE 1RA, PARA VEHICULO ASIGNADO A SAMAPA)"]
[1009,"28 DE SEPTIEMBRE DE 2018","JUAN JOSE VAZQUEZ URRUTIA",{"v":7082.01,"d":"$7,082.01"},"GASTOS A COMPROBAR "]
[1010,"28 DE SEPTIEMBRE DE 2018","OPERADORA DE EMPEÑOS Y PRESTAMOS SAPI DE CV SOFOM ENR.",{"v":2068.52,"d":"$2,068.52"},"RETENCION EFECTUADA DE PRESTAMO A EMPLEADO (MAS X MENOS)"]
[1011,"28 DE SEPTIEMBRE DE 2018","LILIANA FUENTES PEÑA",{"v":821,"d":"$821.00"},"CANCELACION DE FACTURA "]
[1012,"01 DE OCTUBRE DE 2018","ERI CERVANTES MEJIA",{"v":1065.9,"d":"$1,065.90"},"COMPLEMENTO DE 13 DIAS LABORADOS DE LA SEGUNDA QUINCENA DE SEPTIMBRE 2018 A ( FONTANERO)"]
[1013,"01 DE OCTUBRE DE 2018","RAMON MEJIA ENCISO",{"v":1800,"d":"$1,800.00"},"COMPLEMENTO DE SUELDO DE SEGUNDA QUINCENA DE SEPTIEMBRE 2018  A PERSONA QUE LABORA EN CAMPO COMO FONTANERO"]
[1014,"01 DE OCTUBRE DE 2018","JOSE IGNACIO ENCISO LUNA",{"v":665,"d":"$665.00"},"PAGO POR 5 DIAS LABORADOS EN AREA OPERATIVA COMO FONTANERO"]
[1015,"01 DE OCTUBRE DE 2018","ARTEMIA LOPEZ MONTER",{"v":8008.04,"d":"$8,008.04"},"PAGO DE RENTA DEL MES DE OCTUBRE 2018 ( SAMAPA )"]

{"sheet":"CONCEPTO DE CHEQUE CHICO","index":7,"n_rows":1,"n_cols":1,"rows_kept":1,"hidden":true}
["CONCEPTOS DE PAGO"]

{"sheet":"PROVEEDORES","index":8,"n_rows":20,"n_cols":1,"rows_kept":20}
["ARCENIO GOMEZ GUTIERREZ"]
["CFE SUMINISTRADOR DE SERVICIOS BASICOS "]
["ELECTRICA 2004 SA DE CV"]
["EMILIO GONZALEZ DELGADILLO"]
["FELICIANO GARCIA PEREZ"]
["FELIPE HERRERA ENCISO"]
["FRANCISCO JAVIER HERRERA ENCISO"]
["JESUS ALEJANDRO FLORES BERNARDO"]
["JORGE ANDRES MANCILLA CASTILLO"]
["JOSE VICENTE ROMERO RUIZ"]
["MAURO GOMEZ CORDOVA"]
["RODRIGUEZ VELASCO ALEJANDRO"]
["TUBERIAS Y CONEXIONES DEL LAGO SA DE CV"]
["SERGIO HERRERA ENCISO"]
["TECNOELECTRICA NACIONAL S.A. DE C.V."]
["CINDY CACHUA VILLA"]
["ARTEMIA LOPEZ MONTER"]
["ALBERTO HERNANDEZ VELAZQUEZ"]
["COMERCIALIZADORA INDUSTRIAL DE ZAPOPAN SA DE CV"]
["RIVERA TORRES JESSICA MONTSERRAT"]

{"sheet":"Transfer","index":9,"n_rows":38,"n_cols":76,"rows_kept":38,"merged":[[4,10,5,10],[12,2,12,7],[16,2,16,7],[34,2,34,3],[34,5,34,7]]}
[]
[]
[]
[]
[{"$nulls":3},"                                                                                          ",{"$nulls":6},"Numero de Cheque"]
[]
[{"$nulls":10},452036]
[]
[null,null,"                                           ",null," "]
[null,null,"      "]
[null,null,"                                                                                                                                                                                                                                                                                                                                                                                                                                                                                                                                                                                 "]
[null,"                                         ",{"$nulls":4},"      ",{"$f":"+VLOOKUP(F26,'REGISTRO DE CHEQUES'!A1:G4945,4,FALSE)","v":{"$error":"#N/A"}}]
[null,null,{"$f":"PesosMN(H12)","v":{"$error":"#VALUE!"}}]
[null,null,"                            ",null," "]
[null,"                        ","      ","                                 "," ",null,null," "]
[]
[null,null,{"$f":"+VLOOKUP(F26,'REGISTRO DE CHEQUES'!A1:G4945,5,FALSE)","v":{"$error":"#N/A"}}]
[{"$nulls":75},"Z"]
["  "]
[null,null,"            "]
[null,null,"      ",null," "]
[null,null,"     "]
[null,null,"                        "]
[null,null,"     "," "]
[null,null,"               ",null,null,"            "]
[null,null,"     ","Transferencia",null,{"$f":"+VLOOKUP(K7,'REGISTRO DE CHEQUES'!A1:G4945,1,FALSE)","v":{"$error":"#N/A"}}]
[{"$nulls":4}," "]
[null,null,"      "," ",null," ",null,"                                                                                                                                                                                                                                                                                                                                                                         "]
[null,null,"     "]
[null,null,"      "]
[null,null,"       "]
[null,null,"      "]
[null,null,"      ",null,null," "]
[null,null,"                                  ",{"$nulls":4}," "]
[null,null,"IXTLAHUACAN DE LOS MEMBRILLOS, JAL. ",null,null,{"$f":"+VLOOKUP(F26,'REGISTRO DE CHEQUES'!A1:G4945,2,FALSE)","v":{"$error":"#N/A"}}]
[null,null,"          "]
[]
["LIC ANTONIO COVARRUBIAS MEJIA"]

{"sheet":"Orden sin recibo TRANS","index":10,"n_rows":38,"n_cols":76,"rows_kept":38,"merged":[[5,10,6,10],[12,2,12,7],[16,2,16,7],[34,2,34,3],[34,5,34,7]]}
[]
[]
[]
[]
[]
[{"$nulls":3},"                                                                                          ",{"$nulls":6},"Numero de Cheque"]
[]
[]
[null,null,"                                           ",null," "]
[null,null,"      "]
[null,null,"                                                                                                                                                                                                                                                                                                                                                                                                                                                                                                                                                                                 "]
[null,"                                         ",{"$nulls":4},"      ",{"v":1520,"d":"1,520.00"}]
[null,null,{"$f":"PesosMN(H12)","v":"( UN MIL QUINIENTOS VEINTE PESOS 00/100 M.N.)"}]
[null,null,"                            ",null," "]
[null,"                        ","      ","                                 "," ",null,null," "]
[]
[null,null,"PAGO DE GASOLINA DEL LA SEMAN DEL 26 AL 31 DE ENERO DEL 2018"]
[{"$nulls":75},"Z"]
["  "]
[null,null,"            "]
[null,null,"      ",null," "]
[null,null,"     "]
[null,null,"                        "]
[null,null,"     "," "]
[null,null,"               ",null,null,"            "]
[null,null,"     ","TRANSFERENCIA",null,25369]
[{"$nulls":4}," "]
[null,null,"      "," ",null," ",null,"                                                                                                                                                                                                                                                                                                                                                                         "]
[null,null,"     "]
[null,null,"      "]
[null,null,"       "]
[null,null,"      "]
[null,null,"      ",null,null," "]
[null,null,"                                  ",{"$nulls":4}," "]
[null,null,"IXTLAHUACAN DE LOS MEMBRILLOS, JAL. ",null,null,"2018-02-03"]
[null,null,"          "]
[]
["LIC. ANTONIO COVARRUBIAS MEJIA"]

{"sheet":"orden con recibo MODF","index":11,"n_rows":43,"n_cols":9,"rows_kept":43,"merged":[[1,8,2,8],[9,1,9,6],[14,0,14,3],[19,5,19,6],[20,5,20,6],[27,5,27,6],[28,1,28,6],[29,1,29,6],[31,3,31,6],[33,2,33,6],[35,1,35,6],[39,0,39,3],[39,4,39,5],[42,3,42,5]]}
[]
[{"$nulls":8},"Numero de Cheque"]
[]
[]
[]
[]
[{"$nulls":4},"ALEJANDRO"]
[]
[{"$nulls":5},{"v":5220,"d":"5,220.00"}]
[null,{"$f":"PesosMN(F9)","v":"( CINCO MIL DOSCIENTOS VEINTE PESOS 00/100 M.N.)"}]
[]
[{"$nulls":4},"  "]
[]
[]
["IXTLAHUACAN DE LOS MEMBRILLOS ",{"$nulls":4},"2018-02-02"]
[]
[]
[]
[]
[]
["LIC. ANTONIO COVARRUBIAS MEJIA"]
[]
[{"$nulls":4},1234]
[]
[]
[]
[{"$nulls":5},{"$f":"F9","v":{"v":5220,"d":"5,220.00"}}]
[]
[null,"IXTLAHUACAN DE LOS MEMBRILLOS, JALISCO"]
[]
[null,null," "]
[null,{"$f":"F9","v":{"v":5220,"d":"5,220.00"}},null,{"$f":"B10","v":"( CINCO MIL DOSCIENTOS VEINTE PESOS 00/100 M.N.)"}]
[]
[]
[]
[null,"NOMINA"]
[]
[]
[]
["IXTLAHUACAN DE LOS MEMBRILLOS",{"$nulls":3},{"$f":"+F15","v":"2018-02-02"}]
["  "]
[]
[{"$nulls":3},{"$f":"E7","v":"ALEJANDRO"}]

{"sheet":"Hoja1","index":12,"n_rows":4,"n_cols":1,"rows_kept":4}
["CUANTO SE HA GASTADO"]
[]
[]
["ENERO"]

{"sheet":"Hoja2","index":13,"n_rows":41,"n_cols":1,"rows_kept":41}
["JOSE VICENTE ROMERO RUIZ"]
["CARLOS ORTIZ ZAMORA"]
["EMILIO GONZALEZ DELGADILLO "]
["JORGE ANDRES MANCILLA CASTILLO"]
["FELIPE HERRERA ENCISO"]
["JUAN MIGUEL TREJO ROMERO"]
["ARTEMIA LOPEZ MONTER"]
["CFE SUMINISTRADOR DE SERVICIOS BASICOS "]
["COMERCIALIZADORA INDUSTRIAL DE ZAPOPAN SA DE CV"]
["ALBERTO HERNANDEZ VELAZQUEZ"]
["RIVERA TORRES JESSICA MONTSERRAT"]
["RODRIGUEZ VELASCO ALEJANDRO"]
["TUBERIAS Y CONEXIONES DEL LAGO"]
["EFRAIN ESTRADA MEJIA"]
["JESUS ALEJANDRO FLORES BERNARDO"]
["JOSE CARLOS GUTIERREZ FLORES"]
["ANTONIO COVARRUBIAS MEJIA"]
["MAURO GOMEZ CORDOVA"]
["FELICIANO GARCIA PEREZ"]
["FRANCISCO JAVIER HERRERA ENCISO"]
["MARCO ANTONIO RAMIREZ BRAVO "]
["GONZALO BEJARANO LECHUGA"]
["JOSE ANTONIO CONTRERAS LOPEZ"]
["ALEJANDRA SANCHEZ VILLASEÑOR "]
["TUBERIAS Y CONEXIONES DEL LAGO SA DE CV"]
["MARCO ANTONIO RAMIREZ BRAVO"]
["ALEJANDRO RODRIGUEZ VELASCO"]
["GUILLERMO MORA ARANA"]
["SERGIO RAMOS REYES "]
["VAZQUEZ CORONA LETICIA"]
["RAFAEL CORTES HERNANDEZ"]
["APOLONIO BECERRA RAUDA"]
["TECNOELECTRICA NACIONAL SA DE CV"]
["RITA ZUÑIGA LOPEZ"]
["BENJAMIN ALMADA LEMUS "]
["MARIA ALONDRA BARRERA CONTRERAS"]
["ARCENIO GOMEZ GUTIEREZ"]
["RAUL PEREZ LAZCANO"]
["ELECTRICA 2004 SA DE CV"]
["RODRIGUEZ  VELASCO ALEJANDRO"]
["INGENIERIA EN EDIFICACIONES, CAMINOS Y ESTRUCTURAS SA DE CV"]